Workbook

Sheet الدرجات
G1: كشف رصد درجات أعمال الفصل الأول للصف الأول ثانوي | BC1: نموذج امتحان رقم (3)
A2: 1 | B2: 2
L3: المرحلة / التعليم الثانوي | U3: الصف / الأول | Z3: القسم / عـــــــام
E4: العام الدراسي : 1437هـ - 1438هـ الموافق : 2017 - 2018 م مكتب الامتحانات بمنطقة /
B5: رقم مسلسل | C5: اسم الطالب بالكامل | D5: رقم الجلوس | E5: المواد الدراسية | AL5: الجنــــــــــــــــــــــــــــس | AM5: الفصــــــــــــــــــــــــــــل | AN5: المجمـــــــوع العـــــام | AO5: النسبـــــــــــــــــــــــــــــــة | AP5: التقـــــــــــــــــــــــــــــدير | AQ5: نتيجة الطالب | AR5: مواد الرسوب | BC5: مساعد | BD5: رقم الترتيب | BE5: الترتيب
E6: اللغة العربية | G6: 5 | H6: اللغة الانجليزية | J6: 5 | K6: الرياضيات | M6: 5 | N6: الفيزياء | P6: 3 | Q6: الكيمياء | S6: 3 | T6: الاحياء | V6: 3 | W6: التربية الإسلامية | Y6: 2 | Z6: تقنية الملعلومات | AB6: 2 | AC6: التاريخ | AE6: 2 | AF6: الجغرافيا | AH6: 2 | AI6: أساسيات الحياة الاجتماعية | AK6: 1 | AO6: النسبـــــــــــــــــــــــــــة
E7: اعمال السنة | F7: درجة الأمتحان | G7: المجموع | H7: اعمال السنة | I7: درجة الأمتحان | J7: المجموع | K7: اعمال السنة | L7: درجة الأمتحان | M7: المجموع | N7: اعمال السنة | O7: درجة الأمتحان | P7: المجموع | Q7: اعمال السنة | R7: درجة الأمتحان | S7: المجموع | T7: اعمال السنة | U7: درجة الأمتحان | V7: المجموع | W7: اعمال السنة | X7: درجة الأمتحان | Y7: المجموع | Z7: اعمال السنة | AA7: درجة الأمتحان | AB7: المجموع | AC7: اعمال السنة | AD7: درجة الأمتحان | AE7: المجموع | AF7: اعمال السنة | AG7: درجة الأمتحان | AH7: المجموع | AI7: اعمال السنة | AJ7: درجة الأمتحان | AK7: المجموع
E8: 50 | F8: 50 | G8: 100 | H8: 50 | I8: 50 | J8: 100 | K8: 50 | L8: 50 | M8: 100 | N8: 30 | O8: 30 | P8: 60 | Q8: 30 | R8: 30 | S8: 60 | T8: 30 | U8: 30 | V8: 60 | W8: 20 | X8: 20 | Y8: 40 | Z8: 20 | AA8: 20 | AB8: 40 | AC8: 20 | AD8: 20 | AE8: 40 | AF8: 20 | AG8: 20 | AH8: 40 | AI8: 10 | AJ8: 10 | AK8: 20 | AR8: 1 | AS8: 2 | AT8: 3 | AU8: 4 | AV8: 5 | AW8: 6 | AX8: 7 | AY8: 8 | AZ8: 9 | BA8: 10 | BB8: 11
B9: عمود1 | C9: عمود2 | D9: عمود3 | E9: عمود4 | F9: عمود5 | G9: عمود6 | H9: عمود7 | I9: عمود8 | J9: عمود9 | K9: عمود10 | L9: عمود11 | M9: عمود12 | N9: عمود13 | O9: عمود14 | P9: عمود15 | Q9: عمود16 | R9: عمود17 | S9: عمود18 | T9: عمود19 | U9: عمود20 | V9: عمود21 | W9: عمود22 | X9: عمود23 | Y9: عمود24 | Z9: عمود25 | AA9: عمود26 | AB9: عمود27 | AC9: عمود28 | AD9: عمود29 | AE9: عمود30 | AF9: عمود31 | AG9: عمود32 | AH9: عمود33 | AI9: عمود34 | AJ9: عمود35 | AK9: عمود36 | AL9: عمود37 | AM9: عمود38 | AN9: عمود39 | AO9: عمود40 | AP9: عمود41 | AQ9: عمود42 | AR9: عمود43 | AS9: عمود44 | AT9: عمود45 | AU9: عمود46 | AV9: عمود47 | AW9: عمود48 | AX9: عمود49 | AY9: عمود50 | AZ9: عمود51 | BA9: عمود52 | BB9: عمود53 | BC9: عمود54 | BD9: عمود55 | BE9: عمود56
B10: =IF(C10<>"",SUBTOTAL(3,$C$10:C10),"") -> 1 | C10: الطالب 1 | E10: 20 | F10: 18 | G10: 38 | H10: 23 | I10: 12 | J10: 35 | K10: 30 | L10: 5 | M10: 35 | N10: 19 | O10: 9 | P10: 28 | Q10: 22 | R10: 6 | S10: 28 | T10: 10 | U10: 7 | V10: 17 | W10: 5 | X10: 2 | Y10: 7 | Z10: 7 | AA10: 5 | AB10: =الجدول1[[#This Row],[عمود25]]+الجدول1[[#This Row],[عمود26]] -> 12 | AC10: 7 | AD10: 3 | AE10: 10 | AF10: 5 | AG10: 3 | AH10: 8 | AI10: 6 | AJ10: 3 | AK10: 9 | AL10: انثى | AM10: 5/1 | AO10: =IF(الجدول1[[#This Row],[عمود39]]="","",الجدول1[[#This Row],[عمود39]]/640*100) ->  | AP10: =IF(الجدول1[[#This Row],[عمود40]]="","",evaltion(الجدول1[[#This Row],[عمود40]])) ->  | AQ10: =IF(الجدول1[[#This Row],[عمود41]]="ممتاز", "ناجح بتقدير ممتاز"&" "&BE10,IF(الجدول1[[#This Row],[عمود41]]="جيد جدا","ناجح بتقدير جيد جدا"&" "&BE10,IF(الجدول1[[#This Row],[عمود41]]="جيد فقط","ناجح بتقدير جيد فقط"&" "&BE10,IF(الجدول1[[#This Row],[عمود41]]="مقبول","ناجح بتقدير مقبول"&" "&BE10,IF(COUNTBLANK($AR10:$BB10)=11,الجدول1[[#This Row],[عمود35]],"يحتاج إلى عناية في : "&textjoin(" و ",$AR10:$BB10)))))) -> يحتاج إلى عناية في : اللغة العربية و اللغة الانجليزية و الرياضيات و الفيزياء و الكيمياء و الاحياء و التربية الإسلامية و تقنية الملعلومات و التاريخ و الجغرافيا و أساسيات الحياة الاجتماعية | AR10: اللغة العربية | AS10: =IF(J10<($J$8/2),$H$6,"") -> اللغة الانجليزية | AT10: =IF(M10<($M$8/2),$K$6,"") -> الرياضيات | AU10: =IF(P10<($P$8/2),$N$6,"") -> الفيزياء | AV10: =IF(S10<($S$8/2),$Q$6,"") -> الكيمياء | AW10: =IF(V10<($V$8/2),$T$6,"") -> الاحياء | AX10: =IF(Y10<($Y$8/2),$W$6,"") -> التربية الإسلامية | AY10: =IF(AB10<($AB$8/2),$Z$6,"") -> تقنية الملعلومات | AZ10: =IF(AE10<($AE$8/2),$AC$6,"") -> التاريخ | BA10: =IF(AH10<($AH$8/2),$AF$6,"") -> الجغرافيا | BB10: =IF(AK10<($AK$8/2),$AI$6,"") -> أساسيات الحياة الاجتماعية | BC10: =IF(AND(الجدول1[[#This Row],[عمود43]]="",الجدول1[[#This Row],[عمود44]]="",الجدول1[[#This Row],[عمود45]]="",الجدول1[[#This Row],[عمود46]]="",الجدول1[[#This Row],[عمود47]]="",الجدول1[[#This Row],[عمود48]]="",الجدول1[[#This Row],[عمود49]]="",الجدول1[[#This Row],[عمود50]]="",الجدول1[[#This Row],[عمود51]]="",الجدول1[[#This Row],[عمود52]]="",الجدول1[[#This Row],[عمود53]]=""),"","1") -> 1 | BD10: =IF(الجدول1[[#This Row],[عمود39]]="","",RANK(AN10,$AN$10:$AN$104)) ->  | BE10: =IF(الجدول1[[#This Row],[عمود55]]>10,"",atrteb(الجدول1[[#This Row],[عمود55]])) -> 
B11: =IF(C11<>"",SUBTOTAL(3,$C$10:C11),"") -> 2 | C11: الطالب 2 | E11: 29 | F11: 25 | G11: 54 | H11: 19 | I11: 12 | J11: 31 | K11: 27 | L11: 11 | M11: 38 | N11: 15 | O11: 12 | P11: 27 | Q11: 20 | R11: 15 | S11: 35 | T11: 10 | U11: 6 | V11: 16 | W11: 14 | X11: 6 | Y11: 20 | Z11: 15 | AA11: 14 | AB11: =الجدول1[[#This Row],[عمود25]]+الجدول1[[#This Row],[عمود26]] -> 29 | AC11: 15 | AD11: 10 | AE11: 25 | AF11: 11 | AG11: 6 | AH11: 17 | AI11: 5 | AJ11: 7 | AK11: 12 | AL11: انثى | AM11: 3/1 | AO11: =IF(الجدول1[[#This Row],[عمود39]]="","",الجدول1[[#This Row],[عمود39]]/640*100) ->  | AP11: =IF(الجدول1[[#This Row],[عمود40]]="","",evaltion(الجدول1[[#This Row],[عمود40]])) ->  | AQ11: =IF(الجدول1[[#This Row],[عمود41]]="ممتاز", "ناجح بتقدير ممتاز"&" "&BE11,IF(الجدول1[[#This Row],[عمود41]]="جيد جدا","ناجح بتقدير جيد جدا"&" "&BE11,IF(الجدول1[[#This Row],[عمود41]]="جيد فقط","ناجح بتقدير جيد فقط"&" "&BE11,IF(الجدول1[[#This Row],[عمود41]]="مقبول","ناجح بتقدير مقبول"&" "&BE11,IF(COUNTBLANK($AR11:$BB11)=11,الجدول1[[#This Row],[عمود35]],"يحتاج إلى عناية في : "&textjoin(" و ",$AR11:$BB11)))))) -> يحتاج إلى عناية في : اللغة الانجليزية و الرياضيات و الفيزياء و الاحياء و الجغرافيا | AS11: اللغة الانجليزية | AT11: الرياضيات | AU11: الفيزياء | AW11: الاحياء | BA11: الجغرافيا | BC11: =IF(AND(الجدول1[[#This Row],[عمود43]]="",الجدول1[[#This Row],[عمود44]]="",الجدول1[[#This Row],[عمود45]]="",الجدول1[[#This Row],[عمود46]]="",الجدول1[[#This Row],[عمود47]]="",الجدول1[[#This Row],[عمود48]]="",الجدول1[[#This Row],[عمود49]]="",الجدول1[[#This Row],[عمود50]]="",الجدول1[[#This Row],[عمود51]]="",الجدول1[[#This Row],[عمود52]]="",الجدول1[[#This Row],[عمود53]]=""),"","1") -> 1 | BD11: =IF(الجدول1[[#This Row],[عمود39]]="","",RANK(AN11,$AN$10:$AN$104)) ->  | BE11: =IF(الجدول1[[#This Row],[عمود55]]>10,"",atrteb(الجدول1[[#This Row],[عمود55]])) -> 
B12: =IF(C12<>"",SUBTOTAL(3,$C$10:C12),"") -> 3 | C12: الطالب 3 | E12: 48 | F12: 50 | G12: 98 | H12: 43 | I12: 40 | J12: 83 | K12: 35 | L12: 38 | M12: 73 | N12: 26 | O12: 23 | P12: 49 | Q12: 30 | R12: 30 | S12: 60 | T12: 21 | U12: 24 | V12: 45 | W12: 20 | X12: 19 | Y12: 39 | Z12: 20 | AA12: 20 | AB12: 40 | AC12: 20 | AD12: 18 | AE12: 38 | AF12: 20 | AG12: 19 | AH12: 39 | AI12: 10 | AJ12: 9 | AK12: 19 | AL12: انثى | AM12: 3/1 | AN12: 583 | AO12: =IF(الجدول1[[#This Row],[عمود39]]="","",الجدول1[[#This Row],[عمود39]]/640*100) -> 91.09375 | AP12: =IF(الجدول1[[#This Row],[عمود40]]="","",evaltion(الجدول1[[#This Row],[عمود40]])) -> ممتاز | AQ12: =IF(الجدول1[[#This Row],[عمود41]]="ممتاز", "ناجح بتقدير ممتاز"&" "&BE12,IF(الجدول1[[#This Row],[عمود41]]="جيد جدا","ناجح بتقدير جيد جدا"&" "&BE12,IF(الجدول1[[#This Row],[عمود41]]="جيد فقط","ناجح بتقدير جيد فقط"&" "&BE12,IF(الجدول1[[#This Row],[عمود41]]="مقبول","ناجح بتقدير مقبول"&" "&BE12,IF(COUNTBLANK($AR12:$BB12)=11,الجدول1[[#This Row],[عمود35]],"يحتاج إلى عناية في : "&textjoin(" و ",$AR12:$BB12)))))) -> ناجح بتقدير ممتاز | BC12: =IF(AND(الجدول1[[#This Row],[عمود43]]="",الجدول1[[#This Row],[عمود44]]="",الجدول1[[#This Row],[عمود45]]="",الجدول1[[#This Row],[عمود46]]="",الجدول1[[#This Row],[عمود47]]="",الجدول1[[#This Row],[عمود48]]="",الجدول1[[#This Row],[عمود49]]="",الجدول1[[#This Row],[عمود50]]="",الجدول1[[#This Row],[عمود51]]="",الجدول1[[#This Row],[عمود52]]="",الجدول1[[#This Row],[عمود53]]=""),"","1") ->  | BD12: =IF(الجدول1[[#This Row],[عمود39]]="","",RANK(AN12,$AN$10:$AN$104)) -> 11 | BE12: =IF(الجدول1[[#This Row],[عمود55]]>10,"",atrteb(الجدول1[[#This Row],[عمود55]])) -> 
B13: =IF(C13<>"",SUBTOTAL(3,$C$10:C13),"") -> 4 | C13: الطالب 4 | E13: 40 | F13: 36 | G13: 76 | H13: 41 | I13: 34 | J13: 75 | K13: 33 | L13: 29 | M13: 62 | N13: 18 | O13: 18 | P13: 36 | Q13: 20 | R13: 27 | S13: 47 | T13: 24 | U13: 26 | V13: 50 | W13: 15 | X13: 14 | Y13: 29 | Z13: 14 | AA13: 15 | AB13: 29 | AC13: 14 | AD13: 13 | AE13: 27 | AF13: 13 | AG13: 11 | AH13: 24 | AI13: 6 | AJ13: 7 | AK13: 13 | AL13: انثى | AM13: 4/1 | AN13: 468 | AO13: =IF(الجدول1[[#This Row],[عمود39]]="","",الجدول1[[#This Row],[عمود39]]/640*100) -> 73.125 | AP13: =IF(الجدول1[[#This Row],[عمود40]]="","",evaltion(الجدول1[[#This Row],[عمود40]])) -> جيد فقط | AQ13: =IF(الجدول1[[#This Row],[عمود41]]="ممتاز", "ناجح بتقدير ممتاز"&" "&BE13,IF(الجدول1[[#This Row],[عمود41]]="جيد جدا","ناجح بتقدير جيد جدا"&" "&BE13,IF(الجدول1[[#This Row],[عمود41]]="جيد فقط","ناجح بتقدير جيد فقط"&" "&BE13,IF(الجدول1[[#This Row],[عمود41]]="مقبول","ناجح بتقدير مقبول"&" "&BE13,IF(COUNTBLANK($AR13:$BB13)=11,الجدول1[[#This Row],[عمود35]],"يحتاج إلى عناية في : "&textjoin(" و ",$AR13:$BB13)))))) -> ناجح بتقدير جيد فقط | BC13: =IF(AND(الجدول1[[#This Row],[عمود43]]="",الجدول1[[#This Row],[عمود44]]="",الجدول1[[#This Row],[عمود45]]="",الجدول1[[#This Row],[عمود46]]="",الجدول1[[#This Row],[عمود47]]="",الجدول1[[#This Row],[عمود48]]="",الجدول1[[#This Row],[عمود49]]="",الجدول1[[#This Row],[عمود50]]="",الجدول1[[#This Row],[عمود51]]="",الجدول1[[#This Row],[عمود52]]="",الجدول1[[#This Row],[عمود53]]=""),"","1") ->  | BD13: =IF(الجدول1[[#This Row],[عمود39]]="","",RANK(AN13,$AN$10:$AN$104)) -> 23 | BE13: =IF(الجدول1[[#This Row],[عمود55]]>10,"",atrteb(الجدول1[[#This Row],[عمود55]])) -> 
B14: =IF(C14<>"",SUBTOTAL(3,$C$10:C14),"") -> 5 | C14: الطالب 5 | E14: 33 | F14: 30 | G14: 63 | H14: 14 | I14: 8 | J14: 22 | K14: 13 | L14: 8 | M14: 21 | N14: 13 | O14: 10 | P14: 23 | Q14: 15 | R14: 7 | S14: 22 | T14: 11 | U14: 9 | V14: 20 | W14: 12 | X14: 5 | Y14: 17 | Z14: 12 | AA14: 12 | AB14: =الجدول1[[#This Row],[عمود25]]+الجدول1[[#This Row],[عمود26]] -> 24 | AC14: 12 | AD14: 4 | AE14: 16 | AF14: 15 | AG14: 6 | AH14: 21 | AI14: 7 | AJ14: 6 | AK14: 13 | AL14: انثى | AM14: 2/1 | AO14: =IF(الجدول1[[#This Row],[عمود39]]="","",الجدول1[[#This Row],[عمود39]]/640*100) ->  | AP14: =IF(الجدول1[[#This Row],[عمود40]]="","",evaltion(الجدول1[[#This Row],[عمود40]])) ->  | AQ14: =IF(الجدول1[[#This Row],[عمود41]]="ممتاز", "ناجح بتقدير ممتاز"&" "&BE14,IF(الجدول1[[#This Row],[عمود41]]="جيد جدا","ناجح بتقدير جيد جدا"&" "&BE14,IF(الجدول1[[#This Row],[عمود41]]="جيد فقط","ناجح بتقدير جيد فقط"&" "&BE14,IF(الجدول1[[#This Row],[عمود41]]="مقبول","ناجح بتقدير مقبول"&" "&BE14,IF(COUNTBLANK($AR14:$BB14)=11,الجدول1[[#This Row],[عمود35]],"يحتاج إلى عناية في : "&textjoin(" و ",$AR14:$BB14)))))) -> يحتاج إلى عناية في : اللغة الانجليزية و الرياضيات و الفيزياء و الكيمياء و الاحياء و التربية الإسلامية و التاريخ | AS14: اللغة الانجليزية | AT14: الرياضيات | AU14: الفيزياء | AV14: الكيمياء | AW14: الاحياء | AX14: التربية الإسلامية | AZ14: التاريخ | BC14: =IF(AND(الجدول1[[#This Row],[عمود43]]="",الجدول1[[#This Row],[عمود44]]="",الجدول1[[#This Row],[عمود45]]="",الجدول1[[#This Row],[عمود46]]="",الجدول1[[#This Row],[عمود47]]="",الجدول1[[#This Row],[عمود48]]="",الجدول1[[#This Row],[عمود49]]="",الجدول1[[#This Row],[عمود50]]="",الجدول1[[#This Row],[عمود51]]="",الجدول1[[#This Row],[عمود52]]="",الجدول1[[#This Row],[عمود53]]=""),"","1") -> 1 | BD14: =IF(الجدول1[[#This Row],[عمود39]]="","",RANK(AN14,$AN$10:$AN$104)) ->  | BE14: =IF(الجدول1[[#This Row],[عمود55]]>10,"",atrteb(الجدول1[[#This Row],[عمود55]])) -> 
B15: =IF(C15<>"",SUBTOTAL(3,$C$10:C15),"") -> 6 | C15: الطالب 6 | E15: 27 | F15: 25 | G15: 52 | H15: 26 | I15: 16 | J15: 42 | K15: 32 | L15: 18 | M15: 50 | N15: 17 | O15: 5 | P15: 22 | Q15: 18 | R15: 10 | S15: 28 | T15: 22 | U15: 15 | V15: 37 | W15: 12 | X15: 9 | Y15: 21 | Z15: 9 | AA15: 12 | AB15: =الجدول1[[#This Row],[عمود25]]+الجدول1[[#This Row],[عمود26]] -> 21 | AC15: 9 | AD15: 8 | AE15: 17 | AF15: 9 | AG15: 6 | AH15: 15 | AI15: 6 | AJ15: 3 | AK15: 9 | AL15: انثى | AM15: 6/1 | AO15: =IF(الجدول1[[#This Row],[عمود39]]="","",الجدول1[[#This Row],[عمود39]]/640*100) ->  | AP15: =IF(الجدول1[[#This Row],[عمود40]]="","",evaltion(الجدول1[[#This Row],[عمود40]])) ->  | AQ15: =IF(الجدول1[[#This Row],[عمود41]]="ممتاز", "ناجح بتقدير ممتاز"&" "&BE15,IF(الجدول1[[#This Row],[عمود41]]="جيد جدا","ناجح بتقدير جيد جدا"&" "&BE15,IF(الجدول1[[#This Row],[عمود41]]="جيد فقط","ناجح بتقدير جيد فقط"&" "&BE15,IF(الجدول1[[#This Row],[عمود41]]="مقبول","ناجح بتقدير مقبول"&" "&BE15,IF(COUNTBLANK($AR15:$BB15)=11,الجدول1[[#This Row],[عمود35]],"يحتاج إلى عناية في : "&textjoin(" و ",$AR15:$BB15)))))) -> يحتاج إلى عناية في : اللغة الانجليزية و الفيزياء و الكيمياء و التاريخ و الجغرافيا و أساسيات الحياة الاجتماعية | AS15: اللغة الانجليزية | AU15: الفيزياء | AV15: الكيمياء | AZ15: التاريخ | BA15: الجغرافيا | BB15: أساسيات الحياة الاجتماعية | BC15: =IF(AND(الجدول1[[#This Row],[عمود43]]="",الجدول1[[#This Row],[عمود44]]="",الجدول1[[#This Row],[عمود45]]="",الجدول1[[#This Row],[عمود46]]="",الجدول1[[#This Row],[عمود47]]="",الجدول1[[#This Row],[عمود48]]="",الجدول1[[#This Row],[عمود49]]="",الجدول1[[#This Row],[عمود50]]="",الجدول1[[#This Row],[عمود51]]="",الجدول1[[#This Row],[عمود52]]="",الجدول1[[#This Row],[عمود53]]=""),"","1") -> 1 | BD15: =IF(الجدول1[[#This Row],[عمود39]]="","",RANK(AN15,$AN$10:$AN$104)) ->  | BE15: =IF(الجدول1[[#This Row],[عمود55]]>10,"",atrteb(الجدول1[[#This Row],[عمود55]])) -> 
B16: =IF(C16<>"",SUBTOTAL(3,$C$10:C16),"") -> 7 | C16: الطالب 7 | E16: 46 | F16: 27 | G16: 73 | H16: 38 | I16: 20 | J16: 58 | K16: 21 | L16: 9 | M16: 30 | N16: 15 | O16: 12 | P16: 27 | Q16: 25 | R16: 13 | S16: 38 | T16: 25 | U16: 20 | V16: 45 | W16: 19 | X16: 14 | Y16: 33 | Z16: 14 | AA16: 19 | AB16: =الجدول1[[#This Row],[عمود25]]+الجدول1[[#This Row],[عمود26]] -> 33 | AC16: 14 | AD16: 3 | AE16: 17 | AF16: 14 | AG16: 3 | AH16: 17 | AI16: 10 | AJ16: 6 | AK16: 16 | AL16: انثى | AM16: 4/1 | AO16: =IF(الجدول1[[#This Row],[عمود39]]="","",الجدول1[[#This Row],[عمود39]]/640*100) ->  | AP16: =IF(الجدول1[[#This Row],[عمود40]]="","",evaltion(الجدول1[[#This Row],[عمود40]])) ->  | AQ16: =IF(الجدول1[[#This Row],[عمود41]]="ممتاز", "ناجح بتقدير ممتاز"&" "&BE16,IF(الجدول1[[#This Row],[عمود41]]="جيد جدا","ناجح بتقدير جيد جدا"&" "&BE16,IF(الجدول1[[#This Row],[عمود41]]="جيد فقط","ناجح بتقدير جيد فقط"&" "&BE16,IF(الجدول1[[#This Row],[عمود41]]="مقبول","ناجح بتقدير مقبول"&" "&BE16,IF(COUNTBLANK($AR16:$BB16)=11,الجدول1[[#This Row],[عمود35]],"يحتاج إلى عناية في : "&textjoin(" و ",$AR16:$BB16)))))) -> يحتاج إلى عناية في : الرياضيات و الفيزياء و التاريخ و الجغرافيا | AT16: الرياضيات | AU16: الفيزياء | AZ16: التاريخ | BA16: الجغرافيا | BC16: =IF(AND(الجدول1[[#This Row],[عمود43]]="",الجدول1[[#This Row],[عمود44]]="",الجدول1[[#This Row],[عمود45]]="",الجدول1[[#This Row],[عمود46]]="",الجدول1[[#This Row],[عمود47]]="",الجدول1[[#This Row],[عمود48]]="",الجدول1[[#This Row],[عمود49]]="",الجدول1[[#This Row],[عمود50]]="",الجدول1[[#This Row],[عمود51]]="",الجدول1[[#This Row],[عمود52]]="",الجدول1[[#This Row],[عمود53]]=""),"","1") -> 1 | BD16: =IF(الجدول1[[#This Row],[عمود39]]="","",RANK(AN16,$AN$10:$AN$104)) ->  | BE16: =IF(الجدول1[[#This Row],[عمود55]]>10,"",atrteb(الجدول1[[#This Row],[عمود55]])) -> 
B17: =IF(C17<>"",SUBTOTAL(3,$C$10:C17),"") -> 8 | C17: الطالب 8 | E17: 46 | F17: 45 | G17: 91 | H17: 46 | I17: 21 | J17: 67 | K17: 48 | L17: 44 | M17: 92 | N17: 28 | O17: 18 | P17: 46 | Q17: 30 | R17: 28 | S17: 58 | T17: 27 | U17: 28 | V17: 55 | W17: 20 | X17: 18 | Y17: 38 | Z17: 19 | AA17: 20 | AB17: 39 | AC17: 19 | AD17: 14 | AE17: 33 | AF17: 16 | AG17: 14 | AH17: 30 | AI17: 10 | AJ17: 9 | AK17: 19 | AL17: انثى | AM17: 6/1 | AN17: 568 | AO17: =IF(الجدول1[[#This Row],[عمود39]]="","",الجدول1[[#This Row],[عمود39]]/640*100) -> 88.75 | AP17: =IF(الجدول1[[#This Row],[عمود40]]="","",evaltion(الجدول1[[#This Row],[عمود40]])) -> ممتاز | AQ17: =IF(الجدول1[[#This Row],[عمود41]]="ممتاز", "ناجح بتقدير ممتاز"&" "&BE17,IF(الجدول1[[#This Row],[عمود41]]="جيد جدا","ناجح بتقدير جيد جدا"&" "&BE17,IF(الجدول1[[#This Row],[عمود41]]="جيد فقط","ناجح بتقدير جيد فقط"&" "&BE17,IF(الجدول1[[#This Row],[عمود41]]="مقبول","ناجح بتقدير مقبول"&" "&BE17,IF(COUNTBLANK($AR17:$BB17)=11,الجدول1[[#This Row],[عمود35]],"يحتاج إلى عناية في : "&textjoin(" و ",$AR17:$BB17)))))) -> ناجح بتقدير ممتاز | BC17: =IF(AND(الجدول1[[#This Row],[عمود43]]="",الجدول1[[#This Row],[عمود44]]="",الجدول1[[#This Row],[عمود45]]="",الجدول1[[#This Row],[عمود46]]="",الجدول1[[#This Row],[عمود47]]="",الجدول1[[#This Row],[عمود48]]="",الجدول1[[#This Row],[عمود49]]="",الجدول1[[#This Row],[عمود50]]="",الجدول1[[#This Row],[عمود51]]="",الجدول1[[#This Row],[عمود52]]="",الجدول1[[#This Row],[عمود53]]=""),"","1") ->  | BD17: =IF(الجدول1[[#This Row],[عمود39]]="","",RANK(AN17,$AN$10:$AN$104)) -> 15 | BE17: =IF(الجدول1[[#This Row],[عمود55]]>10,"",atrteb(الجدول1[[#This Row],[عمود55]])) -> 
B18: =IF(C18<>"",SUBTOTAL(3,$C$10:C18),"") -> 9 | C18: الطالب 9 | E18: 28 | F18: 24 | G18: 52 | H18: 21 | I18: 12 | J18: 33 | K18: 22 | L18: 11 | M18: 33 | N18: 23 | O18: 14 | P18: 37 | Q18: 20 | R18: 12 | S18: 32 | T18: 15 | U18: 13 | V18: 28 | W18: 17 | X18: 12 | Y18: 29 | Z18: 10 | AA18: 17 | AB18: =الجدول1[[#This Row],[عمود25]]+الجدول1[[#This Row],[عمود26]] -> 27 | AC18: 10 | AD18: 10 | AE18: 20 | AF18: 15 | AG18: 7 | AH18: 22 | AI18: 6 | AJ18: 7 | AK18: 13 | AL18: انثى | AM18: 1/1 | AO18: =IF(الجدول1[[#This Row],[عمود39]]="","",الجدول1[[#This Row],[عمود39]]/640*100) ->  | AP18: =IF(الجدول1[[#This Row],[عمود40]]="","",evaltion(الجدول1[[#This Row],[عمود40]])) ->  | AQ18: =IF(الجدول1[[#This Row],[عمود41]]="ممتاز", "ناجح بتقدير ممتاز"&" "&BE18,IF(الجدول1[[#This Row],[عمود41]]="جيد جدا","ناجح بتقدير جيد جدا"&" "&BE18,IF(الجدول1[[#This Row],[عمود41]]="جيد فقط","ناجح بتقدير جيد فقط"&" "&BE18,IF(الجدول1[[#This Row],[عمود41]]="مقبول","ناجح بتقدير مقبول"&" "&BE18,IF(COUNTBLANK($AR18:$BB18)=11,الجدول1[[#This Row],[عمود35]],"يحتاج إلى عناية في : "&textjoin(" و ",$AR18:$BB18)))))) -> يحتاج إلى عناية في : اللغة الانجليزية و الرياضيات و الاحياء | AS18: اللغة الانجليزية | AT18: الرياضيات | AW18: الاحياء | BC18: =IF(AND(الجدول1[[#This Row],[عمود43]]="",الجدول1[[#This Row],[عمود44]]="",الجدول1[[#This Row],[عمود45]]="",الجدول1[[#This Row],[عمود46]]="",الجدول1[[#This Row],[عمود47]]="",الجدول1[[#This Row],[عمود48]]="",الجدول1[[#This Row],[عمود49]]="",الجدول1[[#This Row],[عمود50]]="",الجدول1[[#This Row],[عمود51]]="",الجدول1[[#This Row],[عمود52]]="",الجدول1[[#This Row],[عمود53]]=""),"","1") -> 1 | BD18: =IF(الجدول1[[#This Row],[عمود39]]="","",RANK(AN18,$AN$10:$AN$104)) ->  | BE18: =IF(الجدول1[[#This Row],[عمود55]]>10,"",atrteb(الجدول1[[#This Row],[عمود55]])) -> 
B19: =IF(C19<>"",SUBTOTAL(3,$C$10:C19),"") -> 10 | C19: الطالب 10 | E19: 33 | F19: 29 | G19: 62 | H19: 29 | I19: 18 | J19: 47 | K19: 28 | L19: 18 | M19: 46 | N19: 15 | O19: 9 | P19: 24 | Q19: 18 | R19: 20 | S19: 38 | T19: 9 | U19: 23 | V19: 32 | W19: 16 | X19: 14 | Y19: 30 | Z19: 15 | AA19: 16 | AB19: =الجدول1[[#This Row],[عمود25]]+الجدول1[[#This Row],[عمود26]] -> 31 | AC19: 15 | AD19: 12 | AE19: 27 | AF19: 14 | AG19: 7 | AH19: 21 | AI19: 6 | AJ19: 7 | AK19: 13 | AL19: انثى | AM19: 3/1 | AO19: =IF(الجدول1[[#This Row],[عمود39]]="","",الجدول1[[#This Row],[عمود39]]/640*100) ->  | AP19: =IF(الجدول1[[#This Row],[عمود40]]="","",evaltion(الجدول1[[#This Row],[عمود40]])) ->  | AQ19: =IF(الجدول1[[#This Row],[عمود41]]="ممتاز", "ناجح بتقدير ممتاز"&" "&BE19,IF(الجدول1[[#This Row],[عمود41]]="جيد جدا","ناجح بتقدير جيد جدا"&" "&BE19,IF(الجدول1[[#This Row],[عمود41]]="جيد فقط","ناجح بتقدير جيد فقط"&" "&BE19,IF(الجدول1[[#This Row],[عمود41]]="مقبول","ناجح بتقدير مقبول"&" "&BE19,IF(COUNTBLANK($AR19:$BB19)=11,الجدول1[[#This Row],[عمود35]],"يحتاج إلى عناية في : "&textjoin(" و ",$AR19:$BB19)))))) -> يحتاج إلى عناية في : اللغة الانجليزية و الرياضيات و الفيزياء | AS19: اللغة الانجليزية | AT19: الرياضيات | AU19: الفيزياء | BC19: =IF(AND(الجدول1[[#This Row],[عمود43]]="",الجدول1[[#This Row],[عمود44]]="",الجدول1[[#This Row],[عمود45]]="",الجدول1[[#This Row],[عمود46]]="",الجدول1[[#This Row],[عمود47]]="",الجدول1[[#This Row],[عمود48]]="",الجدول1[[#This Row],[عمود49]]="",الجدول1[[#This Row],[عمود50]]="",الجدول1[[#This Row],[عمود51]]="",الجدول1[[#This Row],[عمود52]]="",الجدول1[[#This Row],[عمود53]]=""),"","1") -> 1 | BD19: =IF(الجدول1[[#This Row],[عمود39]]="","",RANK(AN19,$AN$10:$AN$104)) ->  | BE19: =IF(الجدول1[[#This Row],[عمود55]]>10,"",atrteb(الجدول1[[#This Row],[عمود55]])) -> 
B20: =IF(C20<>"",SUBTOTAL(3,$C$10:C20),"") -> 11 | C20: الطالب 11 | E20: 48 | F20: 48 | G20: 96 | H20: 50 | I20: 50 | J20: 100 | K20: 50 | L20: 50 | M20: 100 | N20: 29 | O20: 25 | P20: 54 | Q20: 30 | R20: 30 | S20: 60 | T20: 29 | U20: 28 | V20: 57 | W20: 19 | X20: 18 | Y20: 37 | Z20: 19 | AA20: 19 | AB20: 38 | AC20: 19 | AD20: 20 | AE20: 39 | AF20: 19 | AG20: 17 | AH20: 36 | AI20: 8 | AJ20: 10 | AK20: 18 | AL20: انثى | AM20: 5/1 | AN20: 635 | AO20: =IF(الجدول1[[#This Row],[عمود39]]="","",الجدول1[[#This Row],[عمود39]]/640*100) -> 99.21875 | AP20: =IF(الجدول1[[#This Row],[عمود40]]="","",evaltion(الجدول1[[#This Row],[عمود40]])) -> ممتاز | AQ20: =IF(الجدول1[[#This Row],[عمود41]]="ممتاز", "ناجح بتقدير ممتاز"&" "&BE20,IF(الجدول1[[#This Row],[عمود41]]="جيد جدا","ناجح بتقدير جيد جدا"&" "&BE20,IF(الجدول1[[#This Row],[عمود41]]="جيد فقط","ناجح بتقدير جيد فقط"&" "&BE20,IF(الجدول1[[#This Row],[عمود41]]="مقبول","ناجح بتقدير مقبول"&" "&BE20,IF(COUNTBLANK($AR20:$BB20)=11,الجدول1[[#This Row],[عمود35]],"يحتاج إلى عناية في : "&textjoin(" و ",$AR20:$BB20)))))) -> ناجح بتقدير ممتاز الترتيب الرابع | BC20: =IF(AND(الجدول1[[#This Row],[عمود43]]="",الجدول1[[#This Row],[عمود44]]="",الجدول1[[#This Row],[عمود45]]="",الجدول1[[#This Row],[عمود46]]="",الجدول1[[#This Row],[عمود47]]="",الجدول1[[#This Row],[عمود48]]="",الجدول1[[#This Row],[عمود49]]="",الجدول1[[#This Row],[عمود50]]="",الجدول1[[#This Row],[عمود51]]="",الجدول1[[#This Row],[عمود52]]="",الجدول1[[#This Row],[عمود53]]=""),"","1") ->  | BD20: =IF(الجدول1[[#This Row],[عمود39]]="","",RANK(AN20,$AN$10:$AN$104)) -> 4 | BE20: =IF(الجدول1[[#This Row],[عمود55]]>10,"",atrteb(الجدول1[[#This Row],[عمود55]])) -> الترتيب الرابع
B21: =IF(C21<>"",SUBTOTAL(3,$C$10:C21),"") -> 12 | C21: الطالب 12 | E21: 47 | F21: 46 | G21: 93 | H21: 42 | I21: 27 | J21: 69 | K21: 48 | L21: 29 | M21: 77 | N21: 26 | O21: 21 | P21: 47 | Q21: 28 | R21: 29 | S21: 57 | T21: 30 | U21: 29 | V21: 59 | W21: 20 | X21: 17 | Y21: 37 | Z21: 17 | AA21: 20 | AB21: 37 | AC21: 17 | AD21: 18 | AE21: 35 | AF21: 19 | AG21: 20 | AH21: 39 | AI21: 10 | AJ21: 10 | AK21: 20 | AL21: انثى | AM21: 6/1 | AN21: 570 | AO21: =IF(الجدول1[[#This Row],[عمود39]]="","",الجدول1[[#This Row],[عمود39]]/640*100) -> 89.0625 | AP21: =IF(الجدول1[[#This Row],[عمود40]]="","",evaltion(الجدول1[[#This Row],[عمود40]])) -> ممتاز | AQ21: =IF(الجدول1[[#This Row],[عمود41]]="ممتاز", "ناجح بتقدير ممتاز"&" "&BE21,IF(الجدول1[[#This Row],[عمود41]]="جيد جدا","ناجح بتقدير جيد جدا"&" "&BE21,IF(الجدول1[[#This Row],[عمود41]]="جيد فقط","ناجح بتقدير جيد فقط"&" "&BE21,IF(الجدول1[[#This Row],[عمود41]]="مقبول","ناجح بتقدير مقبول"&" "&BE21,IF(COUNTBLANK($AR21:$BB21)=11,الجدول1[[#This Row],[عمود35]],"يحتاج إلى عناية في : "&textjoin(" و ",$AR21:$BB21)))))) -> ناجح بتقدير ممتاز | BC21: =IF(AND(الجدول1[[#This Row],[عمود43]]="",الجدول1[[#This Row],[عمود44]]="",الجدول1[[#This Row],[عمود45]]="",الجدول1[[#This Row],[عمود46]]="",الجدول1[[#This Row],[عمود47]]="",الجدول1[[#This Row],[عمود48]]="",الجدول1[[#This Row],[عمود49]]="",الجدول1[[#This Row],[عمود50]]="",الجدول1[[#This Row],[عمود51]]="",الجدول1[[#This Row],[عمود52]]="",الجدول1[[#This Row],[عمود53]]=""),"","1") ->  | BD21: =IF(الجدول1[[#This Row],[عمود39]]="","",RANK(AN21,$AN$10:$AN$104)) -> 13 | BE21: =IF(الجدول1[[#This Row],[عمود55]]>10,"",atrteb(الجدول1[[#This Row],[عمود55]])) -> 
B22: =IF(C22<>"",SUBTOTAL(3,$C$10:C22),"") -> 13 | C22: الطالب 13 | E22: 44 | F22: 43 | G22: 87 | H22: 42 | I22: 42 | J22: 84 | K22: 36 | L22: 36 | M22: 72 | N22: 26 | O22: 27 | P22: 53 | Q22: 30 | R22: 28 | S22: 58 | T22: 23 | U22: 19 | V22: 42 | W22: 20 | X22: 16 | Y22: 36 | Z22: 20 | AA22: 20 | AB22: 40 | AC22: 20 | AD22: 15 | AE22: 35 | AF22: 20 | AG22: 18 | AH22: 38 | AI22: 10 | AJ22: 10 | AK22: 20 | AL22: انثى | AM22: 1/1 | AN22: 565 | AO22: =IF(الجدول1[[#This Row],[عمود39]]="","",الجدول1[[#This Row],[عمود39]]/640*100) -> 88.28125 | AP22: =IF(الجدول1[[#This Row],[عمود40]]="","",evaltion(الجدول1[[#This Row],[عمود40]])) -> ممتاز | AQ22: =IF(الجدول1[[#This Row],[عمود41]]="ممتاز", "ناجح بتقدير ممتاز"&" "&BE22,IF(الجدول1[[#This Row],[عمود41]]="جيد جدا","ناجح بتقدير جيد جدا"&" "&BE22,IF(الجدول1[[#This Row],[عمود41]]="جيد فقط","ناجح بتقدير جيد فقط"&" "&BE22,IF(الجدول1[[#This Row],[عمود41]]="مقبول","ناجح بتقدير مقبول"&" "&BE22,IF(COUNTBLANK($AR22:$BB22)=11,الجدول1[[#This Row],[عمود35]],"يحتاج إلى عناية في : "&textjoin(" و ",$AR22:$BB22)))))) -> ناجح بتقدير ممتاز | BC22: =IF(AND(الجدول1[[#This Row],[عمود43]]="",الجدول1[[#This Row],[عمود44]]="",الجدول1[[#This Row],[عمود45]]="",الجدول1[[#This Row],[عمود46]]="",الجدول1[[#This Row],[عمود47]]="",الجدول1[[#This Row],[عمود48]]="",الجدول1[[#This Row],[عمود49]]="",الجدول1[[#This Row],[عمود50]]="",الجدول1[[#This Row],[عمود51]]="",الجدول1[[#This Row],[عمود52]]="",الجدول1[[#This Row],[عمود53]]=""),"","1") ->  | BD22: =IF(الجدول1[[#This Row],[عمود39]]="","",RANK(AN22,$AN$10:$AN$104)) -> 16 | BE22: =IF(الجدول1[[#This Row],[عمود55]]>10,"",atrteb(الجدول1[[#This Row],[عمود55]])) -> 
B23: =IF(C23<>"",SUBTOTAL(3,$C$10:C23),"") -> 14 | C23: الطالب 14 | E23: 48 | F23: 47 | G23: 95 | H23: 43 | I23: 43 | J23: 86 | K23: 50 | L23: 38 | M23: 88 | N23: 28 | O23: 20 | P23: 48 | Q23: 29 | R23: 27 | S23: 56 | T23: 28 | U23: 25 | V23: 53 | W23: 20 | X23: 17 | Y23: 37 | Z23: 14 | AA23: 20 | AB23: 34 | AC23: 14 | AD23: 20 | AE23: 34 | AF23: 20 | AG23: 19 | AH23: 39 | AI23: 10 | AJ23: 10 | AK23: 20 | AL23: انثى | AM23: 5/1 | AN23: 590 | AO23: =IF(الجدول1[[#This Row],[عمود39]]="","",الجدول1[[#This Row],[عمود39]]/640*100) -> 92.1875 | AP23: =IF(الجدول1[[#This Row],[عمود40]]="","",evaltion(الجدول1[[#This Row],[عمود40]])) -> ممتاز | AQ23: =IF(الجدول1[[#This Row],[عمود41]]="ممتاز", "ناجح بتقدير ممتاز"&" "&BE23,IF(الجدول1[[#This Row],[عمود41]]="جيد جدا","ناجح بتقدير جيد جدا"&" "&BE23,IF(الجدول1[[#This Row],[عمود41]]="جيد فقط","ناجح بتقدير جيد فقط"&" "&BE23,IF(الجدول1[[#This Row],[عمود41]]="مقبول","ناجح بتقدير مقبول"&" "&BE23,IF(COUNTBLANK($AR23:$BB23)=11,الجدول1[[#This Row],[عمود35]],"يحتاج إلى عناية في : "&textjoin(" و ",$AR23:$BB23)))))) -> ناجح بتقدير ممتاز الترتيب الثامن | BC23: =IF(AND(الجدول1[[#This Row],[عمود43]]="",الجدول1[[#This Row],[عمود44]]="",الجدول1[[#This Row],[عمود45]]="",الجدول1[[#This Row],[عمود46]]="",الجدول1[[#This Row],[عمود47]]="",الجدول1[[#This Row],[عمود48]]="",الجدول1[[#This Row],[عمود49]]="",الجدول1[[#This Row],[عمود50]]="",الجدول1[[#This Row],[عمود51]]="",الجدول1[[#This Row],[عمود52]]="",الجدول1[[#This Row],[عمود53]]=""),"","1") ->  | BD23: =IF(الجدول1[[#This Row],[عمود39]]="","",RANK(AN23,$AN$10:$AN$104)) -> 8 | BE23: =IF(الجدول1[[#This Row],[عمود55]]>10,"",atrteb(الجدول1[[#This Row],[عمود55]])) -> الترتيب الثامن
B24: =IF(C24<>"",SUBTOTAL(3,$C$10:C24),"") -> 15 | C24: الطالب 15 | E24: 47 | F24: 45 | G24: 92 | H24: 37 | I24: 42 | J24: 79 | K24: 32 | L24: 37 | M24: 69 | N24: 24 | O24: 21 | P24: 45 | Q24: 27 | R24: 29 | S24: 56 | T24: 18 | U24: 23 | V24: 41 | W24: 19 | X24: 17 | Y24: 36 | Z24: 20 | AA24: 19 | AB24: 39 | AC24: 20 | AD24: 17 | AE24: 37 | AF24: 19 | AG24: 15 | AH24: 34 | AI24: 9 | AJ24: 9 | AK24: 18 | AL24: انثى | AM24: 1/1 | AN24: 546 | AO24: =IF(الجدول1[[#This Row],[عمود39]]="","",الجدول1[[#This Row],[عمود39]]/640*100) -> 85.3125 | AP24: =IF(الجدول1[[#This Row],[عمود40]]="","",evaltion(الجدول1[[#This Row],[عمود40]])) -> ممتاز | AQ24: =IF(الجدول1[[#This Row],[عمود41]]="ممتاز", "ناجح بتقدير ممتاز"&" "&BE24,IF(الجدول1[[#This Row],[عمود41]]="جيد جدا","ناجح بتقدير جيد جدا"&" "&BE24,IF(الجدول1[[#This Row],[عمود41]]="جيد فقط","ناجح بتقدير جيد فقط"&" "&BE24,IF(الجدول1[[#This Row],[عمود41]]="مقبول","ناجح بتقدير مقبول"&" "&BE24,IF(COUNTBLANK($AR24:$BB24)=11,الجدول1[[#This Row],[عمود35]],"يحتاج إلى عناية في : "&textjoin(" و ",$AR24:$BB24)))))) -> ناجح بتقدير ممتاز | BC24: =IF(AND(الجدول1[[#This Row],[عمود43]]="",الجدول1[[#This Row],[عمود44]]="",الجدول1[[#This Row],[عمود45]]="",الجدول1[[#This Row],[عمود46]]="",الجدول1[[#This Row],[عمود47]]="",الجدول1[[#This Row],[عمود48]]="",الجدول1[[#This Row],[عمود49]]="",الجدول1[[#This Row],[عمود50]]="",الجدول1[[#This Row],[عمود51]]="",الجدول1[[#This Row],[عمود52]]="",الجدول1[[#This Row],[عمود53]]=""),"","1") ->  | BD24: =IF(الجدول1[[#This Row],[عمود39]]="","",RANK(AN24,$AN$10:$AN$104)) -> 19 | BE24: =IF(الجدول1[[#This Row],[عمود55]]>10,"",atrteb(الجدول1[[#This Row],[عمود55]])) -> 
B25: =IF(C25<>"",SUBTOTAL(3,$C$10:C25),"") -> 16 | C25: الطالب 16 | E25: 41 | F25: 37 | G25: 78 | H25: 35 | I25: 30 | J25: 65 | K25: 24 | L25: 20 | M25: 44 | N25: 13 | O25: 17 | P25: 30 | Q25: 25 | R25: 22 | S25: 47 | T25: 18 | U25: 15 | V25: 33 | W25: 17 | X25: 14 | Y25: 31 | Z25: 15 | AA25: 17 | AB25: =الجدول1[[#This Row],[عمود25]]+الجدول1[[#This Row],[عمود26]] -> 32 | AC25: 15 | AD25: 11 | AE25: 26 | AF25: 17 | AG25: 15 | AH25: 32 | AI25: 8 | AJ25: 8 | AK25: 16 | AL25: انثى | AM25: 3/1 | AO25: =IF(الجدول1[[#This Row],[عمود39]]="","",الجدول1[[#This Row],[عمود39]]/640*100) ->  | AP25: =IF(الجدول1[[#This Row],[عمود40]]="","",evaltion(الجدول1[[#This Row],[عمود40]])) ->  | AQ25: =IF(الجدول1[[#This Row],[عمود41]]="ممتاز", "ناجح بتقدير ممتاز"&" "&BE25,IF(الجدول1[[#This Row],[عمود41]]="جيد جدا","ناجح بتقدير جيد جدا"&" "&BE25,IF(الجدول1[[#This Row],[عمود41]]="جيد فقط","ناجح بتقدير جيد فقط"&" "&BE25,IF(الجدول1[[#This Row],[عمود41]]="مقبول","ناجح بتقدير مقبول"&" "&BE25,IF(COUNTBLANK($AR25:$BB25)=11,الجدول1[[#This Row],[عمود35]],"يحتاج إلى عناية في : "&textjoin(" و ",$AR25:$BB25)))))) -> يحتاج إلى عناية في : الرياضيات | AT25: الرياضيات | BC25: =IF(AND(الجدول1[[#This Row],[عمود43]]="",الجدول1[[#This Row],[عمود44]]="",الجدول1[[#This Row],[عمود45]]="",الجدول1[[#This Row],[عمود46]]="",الجدول1[[#This Row],[عمود47]]="",الجدول1[[#This Row],[عمود48]]="",الجدول1[[#This Row],[عمود49]]="",الجدول1[[#This Row],[عمود50]]="",الجدول1[[#This Row],[عمود51]]="",الجدول1[[#This Row],[عمود52]]="",الجدول1[[#This Row],[عمود53]]=""),"","1") -> 1 | BD25: =IF(الجدول1[[#This Row],[عمود39]]="","",RANK(AN25,$AN$10:$AN$104)) ->  | BE25: =IF(الجدول1[[#This Row],[عمود55]]>10,"",atrteb(الجدول1[[#This Row],[عمود55]])) -> 
B26: =IF(C26<>"",SUBTOTAL(3,$C$10:C26),"") -> 17 | C26: الطالب 17 | E26: 45 | F26: 45 | G26: 90 | H26: 49 | I26: 48 | J26: 97 | K26: 43 | L26: 45 | M26: 88 | N26: 28 | O26: 21 | P26: 49 | Q26: 24 | R26: 29 | S26: 53 | T26: 30 | U26: 29 | V26: 59 | W26: 19 | X26: 18 | Y26: 37 | Z26: 16 | AA26: 19 | AB26: 35 | AC26: 16 | AD26: 14 | AE26: 30 | AF26: 17 | AG26: 14 | AH26: 31 | AI26: 9 | AJ26: 7 | AK26: 16 | AL26: انثى | AM26: 4/1 | AN26: 585 | AO26: =IF(الجدول1[[#This Row],[عمود39]]="","",الجدول1[[#This Row],[عمود39]]/640*100) -> 91.40625 | AP26: =IF(الجدول1[[#This Row],[عمود40]]="","",evaltion(الجدول1[[#This Row],[عمود40]])) -> ممتاز | AQ26: =IF(الجدول1[[#This Row],[عمود41]]="ممتاز", "ناجح بتقدير ممتاز"&" "&BE26,IF(الجدول1[[#This Row],[عمود41]]="جيد جدا","ناجح بتقدير جيد جدا"&" "&BE26,IF(الجدول1[[#This Row],[عمود41]]="جيد فقط","ناجح بتقدير جيد فقط"&" "&BE26,IF(الجدول1[[#This Row],[عمود41]]="مقبول","ناجح بتقدير مقبول"&" "&BE26,IF(COUNTBLANK($AR26:$BB26)=11,الجدول1[[#This Row],[عمود35]],"يحتاج إلى عناية في : "&textjoin(" و ",$AR26:$BB26)))))) -> ناجح بتقدير ممتاز الترتيب التاسع | BC26: =IF(AND(الجدول1[[#This Row],[عمود43]]="",الجدول1[[#This Row],[عمود44]]="",الجدول1[[#This Row],[عمود45]]="",الجدول1[[#This Row],[عمود46]]="",الجدول1[[#This Row],[عمود47]]="",الجدول1[[#This Row],[عمود48]]="",الجدول1[[#This Row],[عمود49]]="",الجدول1[[#This Row],[عمود50]]="",الجدول1[[#This Row],[عمود51]]="",الجدول1[[#This Row],[عمود52]]="",الجدول1[[#This Row],[عمود53]]=""),"","1") ->  | BD26: =IF(الجدول1[[#This Row],[عمود39]]="","",RANK(AN26,$AN$10:$AN$104)) -> 9 | BE26: =IF(الجدول1[[#This Row],[عمود55]]>10,"",atrteb(الجدول1[[#This Row],[عمود55]])) -> الترتيب التاسع
B27: =IF(C27<>"",SUBTOTAL(3,$C$10:C27),"") -> 18 | C27: الطالب 18 | E27: 43 | F27: 27 | G27: 70 | H27: 37 | I27: 32 | J27: 69 | K27: 27 | L27: 25 | M27: 52 | N27: 15 | O27: 14 | P27: 29 | Q27: 27 | R27: 28 | S27: 55 | T27: 13 | U27: 19 | V27: 32 | W27: 19 | X27: 14 | Y27: 33 | Z27: 14 | AA27: 19 | AB27: =الجدول1[[#This Row],[عمود25]]+الجدول1[[#This Row],[عمود26]] -> 33 | AC27: 14 | AD27: 9 | AE27: 23 | AF27: 15 | AG27: 8 | AH27: 23 | AI27: 7 | AJ27: 7 | AK27: 14 | AL27: انثى | AM27: 1/1 | AO27: =IF(الجدول1[[#This Row],[عمود39]]="","",الجدول1[[#This Row],[عمود39]]/640*100) ->  | AP27: =IF(الجدول1[[#This Row],[عمود40]]="","",evaltion(الجدول1[[#This Row],[عمود40]])) ->  | AQ27: =IF(الجدول1[[#This Row],[عمود41]]="ممتاز", "ناجح بتقدير ممتاز"&" "&BE27,IF(الجدول1[[#This Row],[عمود41]]="جيد جدا","ناجح بتقدير جيد جدا"&" "&BE27,IF(الجدول1[[#This Row],[عمود41]]="جيد فقط","ناجح بتقدير جيد فقط"&" "&BE27,IF(الجدول1[[#This Row],[عمود41]]="مقبول","ناجح بتقدير مقبول"&" "&BE27,IF(COUNTBLANK($AR27:$BB27)=11,الجدول1[[#This Row],[عمود35]],"يحتاج إلى عناية في : "&textjoin(" و ",$AR27:$BB27)))))) -> يحتاج إلى عناية في : الفيزياء | AU27: الفيزياء | BC27: =IF(AND(الجدول1[[#This Row],[عمود43]]="",الجدول1[[#This Row],[عمود44]]="",الجدول1[[#This Row],[عمود45]]="",الجدول1[[#This Row],[عمود46]]="",الجدول1[[#This Row],[عمود47]]="",الجدول1[[#This Row],[عمود48]]="",الجدول1[[#This Row],[عمود49]]="",الجدول1[[#This Row],[عمود50]]="",الجدول1[[#This Row],[عمود51]]="",الجدول1[[#This Row],[عمود52]]="",الجدول1[[#This Row],[عمود53]]=""),"","1") -> 1 | BD27: =IF(الجدول1[[#This Row],[عمود39]]="","",RANK(AN27,$AN$10:$AN$104)) ->  | BE27: =IF(الجدول1[[#This Row],[عمود55]]>10,"",atrteb(الجدول1[[#This Row],[عمود55]])) -> 
B28: =IF(C28<>"",SUBTOTAL(3,$C$10:C28),"") -> 19 | C28: الطالب 19 | E28: 48 | F28: 46 | G28: 94 | H28: 42 | I28: 39 | J28: 81 | K28: 35 | L28: 28 | M28: 63 | N28: 19 | O28: 16 | P28: 35 | Q28: 25 | R28: 21 | S28: 46 | T28: 28 | U28: 28 | V28: 56 | W28: 14 | X28: 14 | Y28: 28 | Z28: 18 | AA28: 14 | AB28: 32 | AC28: 18 | AD28: 19 | AE28: 37 | AF28: 17 | AG28: 7 | AH28: 24 | AI28: 10 | AJ28: 6 | AK28: 16 | AL28: انثى | AM28: 4/1 | AN28: 512 | AO28: =IF(الجدول1[[#This Row],[عمود39]]="","",الجدول1[[#This Row],[عمود39]]/640*100) -> 80 | AP28: =IF(الجدول1[[#This Row],[عمود40]]="","",evaltion(الجدول1[[#This Row],[عمود40]])) -> جيد جدا | AQ28: =IF(الجدول1[[#This Row],[عمود41]]="ممتاز", "ناجح بتقدير ممتاز"&" "&BE28,IF(الجدول1[[#This Row],[عمود41]]="جيد جدا","ناجح بتقدير جيد جدا"&" "&BE28,IF(الجدول1[[#This Row],[عمود41]]="جيد فقط","ناجح بتقدير جيد فقط"&" "&BE28,IF(الجدول1[[#This Row],[عمود41]]="مقبول","ناجح بتقدير مقبول"&" "&BE28,IF(COUNTBLANK($AR28:$BB28)=11,الجدول1[[#This Row],[عمود35]],"يحتاج إلى عناية في : "&textjoin(" و ",$AR28:$BB28)))))) -> ناجح بتقدير جيد جدا | BC28: =IF(AND(الجدول1[[#This Row],[عمود43]]="",الجدول1[[#This Row],[عمود44]]="",الجدول1[[#This Row],[عمود45]]="",الجدول1[[#This Row],[عمود46]]="",الجدول1[[#This Row],[عمود47]]="",الجدول1[[#This Row],[عمود48]]="",الجدول1[[#This Row],[عمود49]]="",الجدول1[[#This Row],[عمود50]]="",الجدول1[[#This Row],[عمود51]]="",الجدول1[[#This Row],[عمود52]]="",الجدول1[[#This Row],[عمود53]]=""),"","1") ->  | BD28: =IF(الجدول1[[#This Row],[عمود39]]="","",RANK(AN28,$AN$10:$AN$104)) -> 20 | BE28: =IF(الجدول1[[#This Row],[عمود55]]>10,"",atrteb(الجدول1[[#This Row],[عمود55]])) -> 
B29: =IF(C29<>"",SUBTOTAL(3,$C$10:C29),"") -> 20 | C29: الطالب 20 | E29: 47 | F29: 42 | G29: 89 | H29: 42 | I29: 30 | J29: 72 | K29: 34 | L29: 13 | M29: 47 | N29: 23 | O29: 14 | P29: 37 | Q29: 25 | R29: 21 | S29: 46 | T29: 26 | U29: 25 | V29: 51 | W29: 19 | X29: 15 | Y29: 34 | Z29: 18 | AA29: 19 | AB29: =الجدول1[[#This Row],[عمود25]]+الجدول1[[#This Row],[عمود26]] -> 37 | AC29: 18 | AD29: 15 | AE29: 33 | AF29: 16 | AG29: 12 | AH29: 28 | AI29: 9 | AJ29: 8 | AK29: 17 | AL29: انثى | AM29: 4/1 | AO29: =IF(الجدول1[[#This Row],[عمود39]]="","",الجدول1[[#This Row],[عمود39]]/640*100) ->  | AP29: =IF(الجدول1[[#This Row],[عمود40]]="","",evaltion(الجدول1[[#This Row],[عمود40]])) ->  | AQ29: =IF(الجدول1[[#This Row],[عمود41]]="ممتاز", "ناجح بتقدير ممتاز"&" "&BE29,IF(الجدول1[[#This Row],[عمود41]]="جيد جدا","ناجح بتقدير جيد جدا"&" "&BE29,IF(الجدول1[[#This Row],[عمود41]]="جيد فقط","ناجح بتقدير جيد فقط"&" "&BE29,IF(الجدول1[[#This Row],[عمود41]]="مقبول","ناجح بتقدير مقبول"&" "&BE29,IF(COUNTBLANK($AR29:$BB29)=11,الجدول1[[#This Row],[عمود35]],"يحتاج إلى عناية في : "&textjoin(" و ",$AR29:$BB29)))))) -> يحتاج إلى عناية في : الرياضيات | AT29: الرياضيات | BC29: =IF(AND(الجدول1[[#This Row],[عمود43]]="",الجدول1[[#This Row],[عمود44]]="",الجدول1[[#This Row],[عمود45]]="",الجدول1[[#This Row],[عمود46]]="",الجدول1[[#This Row],[عمود47]]="",الجدول1[[#This Row],[عمود48]]="",الجدول1[[#This Row],[عمود49]]="",الجدول1[[#This Row],[عمود50]]="",الجدول1[[#This Row],[عمود51]]="",الجدول1[[#This Row],[عمود52]]="",الجدول1[[#This Row],[عمود53]]=""),"","1") -> 1 | BD29: =IF(الجدول1[[#This Row],[عمود39]]="","",RANK(AN29,$AN$10:$AN$104)) ->  | BE29: =IF(الجدول1[[#This Row],[عمود55]]>10,"",atrteb(الجدول1[[#This Row],[عمود55]])) -> 
B30: =IF(C30<>"",SUBTOTAL(3,$C$10:C30),"") -> 21 | C30: الطالب 21 | E30: 43 | F30: 46 | G30: 89 | H30: 34 | I30: 42 | J30: 76 | K30: 31 | L30: 33 | M30: 64 | N30: 20 | O30: 16 | P30: 36 | Q30: 28 | R30: 26 | S30: 54 | T30: 16 | U30: 18 | V30: 34 | W30: 17 | X30: 15 | Y30: 32 | Z30: 14 | AA30: 17 | AB30: 31 | AC30: 14 | AD30: 11 | AE30: 25 | AF30: 17 | AG30: 11 | AH30: 28 | AI30: 9 | AJ30: 5 | AK30: 14 | AL30: انثى | AM30: 2/1 | AN30: 483 | AO30: =IF(الجدول1[[#This Row],[عمود39]]="","",الجدول1[[#This Row],[عمود39]]/640*100) -> 75.46875 | AP30: =IF(الجدول1[[#This Row],[عمود40]]="","",evaltion(الجدول1[[#This Row],[عمود40]])) -> جيد جدا | AQ30: =IF(الجدول1[[#This Row],[عمود41]]="ممتاز", "ناجح بتقدير ممتاز"&" "&BE30,IF(الجدول1[[#This Row],[عمود41]]="جيد جدا","ناجح بتقدير جيد جدا"&" "&BE30,IF(الجدول1[[#This Row],[عمود41]]="جيد فقط","ناجح بتقدير جيد فقط"&" "&BE30,IF(الجدول1[[#This Row],[عمود41]]="مقبول","ناجح بتقدير مقبول"&" "&BE30,IF(COUNTBLANK($AR30:$BB30)=11,الجدول1[[#This Row],[عمود35]],"يحتاج إلى عناية في : "&textjoin(" و ",$AR30:$BB30)))))) -> ناجح بتقدير جيد جدا | BC30: =IF(AND(الجدول1[[#This Row],[عمود43]]="",الجدول1[[#This Row],[عمود44]]="",الجدول1[[#This Row],[عمود45]]="",الجدول1[[#This Row],[عمود46]]="",الجدول1[[#This Row],[عمود47]]="",الجدول1[[#This Row],[عمود48]]="",الجدول1[[#This Row],[عمود49]]="",الجدول1[[#This Row],[عمود50]]="",الجدول1[[#This Row],[عمود51]]="",الجدول1[[#This Row],[عمود52]]="",الجدول1[[#This Row],[عمود53]]=""),"","1") ->  | BD30: =IF(الجدول1[[#This Row],[عمود39]]="","",RANK(AN30,$AN$10:$AN$104)) -> 22 | BE30: =IF(الجدول1[[#This Row],[عمود55]]>10,"",atrteb(الجدول1[[#This Row],[عمود55]])) -> 
B31: =IF(C31<>"",SUBTOTAL(3,$C$10:C31),"") -> 22 | C31: الطالب 22 | E31: 50 | F31: 48 | G31: 98 | H31: 50 | I31: 47 | J31: 97 | K31: 50 | L31: 40 | M31: 90 | N31: 30 | O31: 27 | P31: 57 | Q31: 30 | R31: 30 | S31: 60 | T31: 24 | U31: 22 | V31: 46 | W31: 20 | X31: 17 | Y31: 37 | Z31: 20 | AA31: 20 | AB31: 40 | AC31: 20 | AD31: 17 | AE31: 37 | AF31: 20 | AG31: 18 | AH31: 38 | AI31: 10 | AJ31: 8 | AK31: 18 | AL31: انثى | AM31: 1/1 | AN31: 618 | AO31: =IF(الجدول1[[#This Row],[عمود39]]="","",الجدول1[[#This Row],[عمود39]]/640*100) -> 96.5625 | AP31: =IF(الجدول1[[#This Row],[عمود40]]="","",evaltion(الجدول1[[#This Row],[عمود40]])) -> ممتاز | AQ31: =IF(الجدول1[[#This Row],[عمود41]]="ممتاز", "ناجح بتقدير ممتاز"&" "&BE31,IF(الجدول1[[#This Row],[عمود41]]="جيد جدا","ناجح بتقدير جيد جدا"&" "&BE31,IF(الجدول1[[#This Row],[عمود41]]="جيد فقط","ناجح بتقدير جيد فقط"&" "&BE31,IF(الجدول1[[#This Row],[عمود41]]="مقبول","ناجح بتقدير مقبول"&" "&BE31,IF(COUNTBLANK($AR31:$BB31)=11,الجدول1[[#This Row],[عمود35]],"يحتاج إلى عناية في : "&textjoin(" و ",$AR31:$BB31)))))) -> ناجح بتقدير ممتاز الترتيب الخامس | BC31: =IF(AND(الجدول1[[#This Row],[عمود43]]="",الجدول1[[#This Row],[عمود44]]="",الجدول1[[#This Row],[عمود45]]="",الجدول1[[#This Row],[عمود46]]="",الجدول1[[#This Row],[عمود47]]="",الجدول1[[#This Row],[عمود48]]="",الجدول1[[#This Row],[عمود49]]="",الجدول1[[#This Row],[عمود50]]="",الجدول1[[#This Row],[عمود51]]="",الجدول1[[#This Row],[عمود52]]="",الجدول1[[#This Row],[عمود53]]=""),"","1") ->  | BD31: =IF(الجدول1[[#This Row],[عمود39]]="","",RANK(AN31,$AN$10:$AN$104)) -> 5 | BE31: =IF(الجدول1[[#This Row],[عمود55]]>10,"",atrteb(الجدول1[[#This Row],[عمود55]])) -> الترتيب الخامس
B32: =IF(C32<>"",SUBTOTAL(3,$C$10:C32),"") -> 23 | C32: الطالب 23 | E32: 37 | F32: 36 | G32: 73 | H32: 33 | I32: 28 | J32: 61 | K32: 26 | L32: 17 | M32: 43 | N32: 21 | O32: 10 | P32: 31 | Q32: 26 | R32: 21 | S32: 47 | T32: 15 | U32: 19 | V32: 34 | W32: 16 | X32: 11 | Y32: 27 | Z32: 20 | AA32: 16 | AB32: =الجدول1[[#This Row],[عمود25]]+الجدول1[[#This Row],[عمود26]] -> 36 | AC32: 20 | AD32: 12 | AE32: 32 | AF32: 16 | AG32: 11 | AH32: 27 | AI32: 9 | AJ32: 6 | AK32: 15 | AL32: انثى | AM32: 3/1 | AO32: =IF(الجدول1[[#This Row],[عمود39]]="","",الجدول1[[#This Row],[عمود39]]/640*100) ->  | AP32: =IF(الجدول1[[#This Row],[عمود40]]="","",evaltion(الجدول1[[#This Row],[عمود40]])) ->  | AQ32: =IF(الجدول1[[#This Row],[عمود41]]="ممتاز", "ناجح بتقدير ممتاز"&" "&BE32,IF(الجدول1[[#This Row],[عمود41]]="جيد جدا","ناجح بتقدير جيد جدا"&" "&BE32,IF(الجدول1[[#This Row],[عمود41]]="جيد فقط","ناجح بتقدير جيد فقط"&" "&BE32,IF(الجدول1[[#This Row],[عمود41]]="مقبول","ناجح بتقدير مقبول"&" "&BE32,IF(COUNTBLANK($AR32:$BB32)=11,الجدول1[[#This Row],[عمود35]],"يحتاج إلى عناية في : "&textjoin(" و ",$AR32:$BB32)))))) -> يحتاج إلى عناية في : الرياضيات | AT32: الرياضيات | BC32: =IF(AND(الجدول1[[#This Row],[عمود43]]="",الجدول1[[#This Row],[عمود44]]="",الجدول1[[#This Row],[عمود45]]="",الجدول1[[#This Row],[عمود46]]="",الجدول1[[#This Row],[عمود47]]="",الجدول1[[#This Row],[عمود48]]="",الجدول1[[#This Row],[عمود49]]="",الجدول1[[#This Row],[عمود50]]="",الجدول1[[#This Row],[عمود51]]="",الجدول1[[#This Row],[عمود52]]="",الجدول1[[#This Row],[عمود53]]=""),"","1") -> 1 | BD32: =IF(الجدول1[[#This Row],[عمود39]]="","",RANK(AN32,$AN$10:$AN$104)) ->  | BE32: =IF(الجدول1[[#This Row],[عمود55]]>10,"",atrteb(الجدول1[[#This Row],[عمود55]])) -> 
B33: =IF(C33<>"",SUBTOTAL(3,$C$10:C33),"") -> 24 | C33: الطالب 24 | E33: 30 | F33: 28 | G33: 58 | H33: 18 | I33: 15 | J33: 33 | K33: 28 | L33: 9 | M33: 37 | N33: 19 | O33: 8 | P33: 27 | Q33: 20 | R33: 16 | S33: 36 | T33: 19 | U33: 14 | V33: 33 | W33: 15 | X33: 10 | Y33: 25 | Z33: 9 | AA33: 15 | AB33: =الجدول1[[#This Row],[عمود25]]+الجدول1[[#This Row],[عمود26]] -> 24 | AC33: 9 | AD33: 10 | AE33: 19 | AF33: 8 | AG33: 10 | AH33: 18 | AI33: 6 | AJ33: 4 | AK33: 10 | AL33: انثى | AM33: 6/1 | AO33: =IF(الجدول1[[#This Row],[عمود39]]="","",الجدول1[[#This Row],[عمود39]]/640*100) ->  | AP33: =IF(الجدول1[[#This Row],[عمود40]]="","",evaltion(الجدول1[[#This Row],[عمود40]])) ->  | AQ33: =IF(الجدول1[[#This Row],[عمود41]]="ممتاز", "ناجح بتقدير ممتاز"&" "&BE33,IF(الجدول1[[#This Row],[عمود41]]="جيد جدا","ناجح بتقدير جيد جدا"&" "&BE33,IF(الجدول1[[#This Row],[عمود41]]="جيد فقط","ناجح بتقدير جيد فقط"&" "&BE33,IF(الجدول1[[#This Row],[عمود41]]="مقبول","ناجح بتقدير مقبول"&" "&BE33,IF(COUNTBLANK($AR33:$BB33)=11,الجدول1[[#This Row],[عمود35]],"يحتاج إلى عناية في : "&textjoin(" و ",$AR33:$BB33)))))) -> يحتاج إلى عناية في : اللغة الانجليزية و الرياضيات و الفيزياء و التاريخ و الجغرافيا | AS33: اللغة الانجليزية | AT33: الرياضيات | AU33: الفيزياء | AZ33: التاريخ | BA33: الجغرافيا | BC33: =IF(AND(الجدول1[[#This Row],[عمود43]]="",الجدول1[[#This Row],[عمود44]]="",الجدول1[[#This Row],[عمود45]]="",الجدول1[[#This Row],[عمود46]]="",الجدول1[[#This Row],[عمود47]]="",الجدول1[[#This Row],[عمود48]]="",الجدول1[[#This Row],[عمود49]]="",الجدول1[[#This Row],[عمود50]]="",الجدول1[[#This Row],[عمود51]]="",الجدول1[[#This Row],[عمود52]]="",الجدول1[[#This Row],[عمود53]]=""),"","1") -> 1 | BD33: =IF(الجدول1[[#This Row],[عمود39]]="","",RANK(AN33,$AN$10:$AN$104)) ->  | BE33: =IF(الجدول1[[#This Row],[عمود55]]>10,"",atrteb(الجدول1[[#This Row],[عمود55]])) -> 
B34: =IF(C34<>"",SUBTOTAL(3,$C$10:C34),"") -> 25 | C34: الطالب 25 | E34: 47 | F34: 48 | G34: 95 | H34: 46 | I34: 45 | J34: 91 | K34: 36 | L34: 40 | M34: 76 | N34: 27 | O34: 24 | P34: 51 | Q34: 30 | R34: 26 | S34: 56 | T34: 28 | U34: 29 | V34: 57 | W34: 19 | X34: 18 | Y34: 37 | Z34: 15 | AA34: 19 | AB34: 34 | AC34: 15 | AD34: 18 | AE34: 33 | AF34: 18 | AG34: 18 | AH34: 36 | AI34: 10 | AJ34: 8 | AK34: 18 | AL34: انثى | AM34: 4/1 | AN34: 584 | AO34: =IF(الجدول1[[#This Row],[عمود39]]="","",الجدول1[[#This Row],[عمود39]]/640*100) -> 91.25 | AP34: =IF(الجدول1[[#This Row],[عمود40]]="","",evaltion(الجدول1[[#This Row],[عمود40]])) -> ممتاز | AQ34: =IF(الجدول1[[#This Row],[عمود41]]="ممتاز", "ناجح بتقدير ممتاز"&" "&BE34,IF(الجدول1[[#This Row],[عمود41]]="جيد جدا","ناجح بتقدير جيد جدا"&" "&BE34,IF(الجدول1[[#This Row],[عمود41]]="جيد فقط","ناجح بتقدير جيد فقط"&" "&BE34,IF(الجدول1[[#This Row],[عمود41]]="مقبول","ناجح بتقدير مقبول"&" "&BE34,IF(COUNTBLANK($AR34:$BB34)=11,الجدول1[[#This Row],[عمود35]],"يحتاج إلى عناية في : "&textjoin(" و ",$AR34:$BB34)))))) -> ناجح بتقدير ممتاز الترتيب العاشر | BC34: =IF(AND(الجدول1[[#This Row],[عمود43]]="",الجدول1[[#This Row],[عمود44]]="",الجدول1[[#This Row],[عمود45]]="",الجدول1[[#This Row],[عمود46]]="",الجدول1[[#This Row],[عمود47]]="",الجدول1[[#This Row],[عمود48]]="",الجدول1[[#This Row],[عمود49]]="",الجدول1[[#This Row],[عمود50]]="",الجدول1[[#This Row],[عمود51]]="",الجدول1[[#This Row],[عمود52]]="",الجدول1[[#This Row],[عمود53]]=""),"","1") ->  | BD34: =IF(الجدول1[[#This Row],[عمود39]]="","",RANK(AN34,$AN$10:$AN$104)) -> 10 | BE34: =IF(الجدول1[[#This Row],[عمود55]]>10,"",atrteb(الجدول1[[#This Row],[عمود55]])) -> الترتيب العاشر
B35: =IF(C35<>"",SUBTOTAL(3,$C$10:C35),"") -> 26 | C35: الطالب 26 | E35: 49 | F35: 50 | G35: 99 | H35: 48 | I35: 47 | J35: 95 | K35: 50 | L35: 50 | M35: 100 | N35: 30 | O35: 30 | P35: 60 | Q35: 30 | R35: 30 | S35: 60 | T35: 30 | U35: 30 | V35: 60 | W35: 20 | X35: 20 | Y35: 40 | Z35: 20 | AA35: 20 | AB35: 40 | AC35: 20 | AD35: 20 | AE35: 40 | AF35: 20 | AG35: 18 | AH35: 38 | AI35: 10 | AJ35: 10 | AK35: 20 | AL35: انثى | AM35: 5/1 | AN35: 652 | AO35: =IF(الجدول1[[#This Row],[عمود39]]="","",الجدول1[[#This Row],[عمود39]]/640*100) -> 101.875 | AP35: =IF(الجدول1[[#This Row],[عمود40]]="","",evaltion(الجدول1[[#This Row],[عمود40]])) -> 0 | AQ35: =IF(الجدول1[[#This Row],[عمود41]]="ممتاز", "ناجح بتقدير ممتاز"&" "&BE35,IF(الجدول1[[#This Row],[عمود41]]="جيد جدا","ناجح بتقدير جيد جدا"&" "&BE35,IF(الجدول1[[#This Row],[عمود41]]="جيد فقط","ناجح بتقدير جيد فقط"&" "&BE35,IF(الجدول1[[#This Row],[عمود41]]="مقبول","ناجح بتقدير مقبول"&" "&BE35,IF(COUNTBLANK($AR35:$BB35)=11,الجدول1[[#This Row],[عمود35]],"يحتاج إلى عناية في : "&textjoin(" و ",$AR35:$BB35)))))) -> 10 | BC35: =IF(AND(الجدول1[[#This Row],[عمود43]]="",الجدول1[[#This Row],[عمود44]]="",الجدول1[[#This Row],[عمود45]]="",الجدول1[[#This Row],[عمود46]]="",الجدول1[[#This Row],[عمود47]]="",الجدول1[[#This Row],[عمود48]]="",الجدول1[[#This Row],[عمود49]]="",الجدول1[[#This Row],[عمود50]]="",الجدول1[[#This Row],[عمود51]]="",الجدول1[[#This Row],[عمود52]]="",الجدول1[[#This Row],[عمود53]]=""),"","1") ->  | BD35: =IF(الجدول1[[#This Row],[عمود39]]="","",RANK(AN35,$AN$10:$AN$104)) -> 1 | BE35: =IF(الجدول1[[#This Row],[عمود55]]>10,"",atrteb(الجدول1[[#This Row],[عمود55]])) -> الترتيب الأول
B36: =IF(C36<>"",SUBTOTAL(3,$C$10:C36),"") -> 27 | C36: الطالب 27 | E36: 37 | F36: 32 | G36: 69 | H36: 24 | I36: 12 | J36: 36 | K36: 21 | L36: 12 | M36: 33 | N36: 18 | O36: 12 | P36: 30 | Q36: 19 | R36: 16 | S36: 35 | T36: 24 | U36: 17 | V36: 41 | W36: 14 | X36: 15 | Y36: 29 | Z36: 13 | AA36: 14 | AB36: =الجدول1[[#This Row],[عمود25]]+الجدول1[[#This Row],[عمود26]] -> 27 | AC36: 13 | AD36: 10 | AE36: 23 | AF36: 11 | AG36: 6 | AH36: 17 | AI36: 6 | AJ36: 7 | AK36: 13 | AL36: انثى | AM36: 4/1 | AO36: =IF(الجدول1[[#This Row],[عمود39]]="","",الجدول1[[#This Row],[عمود39]]/640*100) ->  | AP36: =IF(الجدول1[[#This Row],[عمود40]]="","",evaltion(الجدول1[[#This Row],[عمود40]])) ->  | AQ36: =IF(الجدول1[[#This Row],[عمود41]]="ممتاز", "ناجح بتقدير ممتاز"&" "&BE36,IF(الجدول1[[#This Row],[عمود41]]="جيد جدا","ناجح بتقدير جيد جدا"&" "&BE36,IF(الجدول1[[#This Row],[عمود41]]="جيد فقط","ناجح بتقدير جيد فقط"&" "&BE36,IF(الجدول1[[#This Row],[عمود41]]="مقبول","ناجح بتقدير مقبول"&" "&BE36,IF(COUNTBLANK($AR36:$BB36)=11,الجدول1[[#This Row],[عمود35]],"يحتاج إلى عناية في : "&textjoin(" و ",$AR36:$BB36)))))) -> يحتاج إلى عناية في : اللغة الانجليزية و الرياضيات و الجغرافيا | AS36: اللغة الانجليزية | AT36: الرياضيات | BA36: الجغرافيا | BC36: =IF(AND(الجدول1[[#This Row],[عمود43]]="",الجدول1[[#This Row],[عمود44]]="",الجدول1[[#This Row],[عمود45]]="",الجدول1[[#This Row],[عمود46]]="",الجدول1[[#This Row],[عمود47]]="",الجدول1[[#This Row],[عمود48]]="",الجدول1[[#This Row],[عمود49]]="",الجدول1[[#This Row],[عمود50]]="",الجدول1[[#This Row],[عمود51]]="",الجدول1[[#This Row],[عمود52]]="",الجدول1[[#This Row],[عمود53]]=""),"","1") -> 1 | BD36: =IF(الجدول1[[#This Row],[عمود39]]="","",RANK(AN36,$AN$10:$AN$104)) ->  | BE36: =IF(الجدول1[[#This Row],[عمود55]]>10,"",atrteb(الجدول1[[#This Row],[عمود55]])) -> 
B37: =IF(C37<>"",SUBTOTAL(3,$C$10:C37),"") -> 28 | C37: الطالب 28 | E37: 48 | F37: 44 | G37: 92 | H37: 44 | I37: 46 | J37: 90 | K37: 25 | L37: 31 | M37: 56 | N37: 22 | O37: 21 | P37: 43 | Q37: 30 | R37: 28 | S37: 58 | T37: 24 | U37: 21 | V37: 45 | W37: 20 | X37: 16 | Y37: 36 | Z37: 20 | AA37: 20 | AB37: 40 | AC37: 20 | AD37: 15 | AE37: 35 | AF37: 20 | AG37: 20 | AH37: 40 | AI37: 9 | AJ37: 10 | AK37: 19 | AL37: انثى | AM37: 1/1 | AN37: 554 | AO37: =IF(الجدول1[[#This Row],[عمود39]]="","",الجدول1[[#This Row],[عمود39]]/640*100) -> 86.5625 | AP37: =IF(الجدول1[[#This Row],[عمود40]]="","",evaltion(الجدول1[[#This Row],[عمود40]])) -> ممتاز | AQ37: =IF(الجدول1[[#This Row],[عمود41]]="ممتاز", "ناجح بتقدير ممتاز"&" "&BE37,IF(الجدول1[[#This Row],[عمود41]]="جيد جدا","ناجح بتقدير جيد جدا"&" "&BE37,IF(الجدول1[[#This Row],[عمود41]]="جيد فقط","ناجح بتقدير جيد فقط"&" "&BE37,IF(الجدول1[[#This Row],[عمود41]]="مقبول","ناجح بتقدير مقبول"&" "&BE37,IF(COUNTBLANK($AR37:$BB37)=11,الجدول1[[#This Row],[عمود35]],"يحتاج إلى عناية في : "&textjoin(" و ",$AR37:$BB37)))))) -> ناجح بتقدير ممتاز | BC37: =IF(AND(الجدول1[[#This Row],[عمود43]]="",الجدول1[[#This Row],[عمود44]]="",الجدول1[[#This Row],[عمود45]]="",الجدول1[[#This Row],[عمود46]]="",الجدول1[[#This Row],[عمود47]]="",الجدول1[[#This Row],[عمود48]]="",الجدول1[[#This Row],[عمود49]]="",الجدول1[[#This Row],[عمود50]]="",الجدول1[[#This Row],[عمود51]]="",الجدول1[[#This Row],[عمود52]]="",الجدول1[[#This Row],[عمود53]]=""),"","1") ->  | BD37: =IF(الجدول1[[#This Row],[عمود39]]="","",RANK(AN37,$AN$10:$AN$104)) -> 17 | BE37: =IF(الجدول1[[#This Row],[عمود55]]>10,"",atrteb(الجدول1[[#This Row],[عمود55]])) -> 
B38: =IF(C38<>"",SUBTOTAL(3,$C$10:C38),"") -> 29 | C38: الطالب 29 | E38: 27 | F38: 29 | G38: 56 | H38: 24 | I38: 7 | J38: 31 | K38: 34 | L38: 16 | M38: 50 | N38: 18 | O38: 7 | P38: 25 | Q38: 19 | R38: 9 | S38: 28 | T38: 21 | U38: 15 | V38: 36 | W38: 11 | X38: 5 | Y38: 16 | Z38: 10 | AA38: 11 | AB38: =الجدول1[[#This Row],[عمود25]]+الجدول1[[#This Row],[عمود26]] -> 21 | AC38: 10 | AD38: 9 | AE38: 19 | AF38: 8 | AG38: 4 | AH38: 12 | AI38: 4 | AJ38: 2 | AK38: 6 | AL38: انثى | AM38: 5/1 | AO38: =IF(الجدول1[[#This Row],[عمود39]]="","",الجدول1[[#This Row],[عمود39]]/640*100) ->  | AP38: =IF(الجدول1[[#This Row],[عمود40]]="","",evaltion(الجدول1[[#This Row],[عمود40]])) ->  | AQ38: =IF(الجدول1[[#This Row],[عمود41]]="ممتاز", "ناجح بتقدير ممتاز"&" "&BE38,IF(الجدول1[[#This Row],[عمود41]]="جيد جدا","ناجح بتقدير جيد جدا"&" "&BE38,IF(الجدول1[[#This Row],[عمود41]]="جيد فقط","ناجح بتقدير جيد فقط"&" "&BE38,IF(الجدول1[[#This Row],[عمود41]]="مقبول","ناجح بتقدير مقبول"&" "&BE38,IF(COUNTBLANK($AR38:$BB38)=11,الجدول1[[#This Row],[عمود35]],"يحتاج إلى عناية في : "&textjoin(" و ",$AR38:$BB38)))))) -> يحتاج إلى عناية في : اللغة الانجليزية و الفيزياء و الكيمياء و التربية الإسلامية و التاريخ و الجغرافيا و أساسيات الحياة الاجتماعية | AS38: اللغة الانجليزية | AU38: الفيزياء | AV38: الكيمياء | AX38: التربية الإسلامية | AZ38: التاريخ | BA38: الجغرافيا | BB38: أساسيات الحياة الاجتماعية | BC38: =IF(AND(الجدول1[[#This Row],[عمود43]]="",الجدول1[[#This Row],[عمود44]]="",الجدول1[[#This Row],[عمود45]]="",الجدول1[[#This Row],[عمود46]]="",الجدول1[[#This Row],[عمود47]]="",الجدول1[[#This Row],[عمود48]]="",الجدول1[[#This Row],[عمود49]]="",الجدول1[[#This Row],[عمود50]]="",الجدول1[[#This Row],[عمود51]]="",الجدول1[[#This Row],[عمود52]]="",الجدول1[[#This Row],[عمود53]]=""),"","1") -> 1 | BD38: =IF(الجدول1[[#This Row],[عمود39]]="","",RANK(AN38,$AN$10:$AN$104)) ->  | BE38: =IF(الجدول1[[#This Row],[عمود55]]>10,"",atrteb(الجدول1[[#This Row],[عمود55]])) -> 
B39: =IF(C39<>"",SUBTOTAL(3,$C$10:C39),"") -> 30 | C39: الطالب 30 | E39: 46 | F39: 46 | G39: 92 | H39: 40 | I39: 37 | J39: 77 | K39: 50 | L39: 40 | M39: 90 | N39: 27 | O39: 17 | P39: 44 | Q39: 30 | R39: 27 | S39: 57 | T39: 27 | U39: 27 | V39: 54 | W39: 18 | X39: 12 | Y39: 30 | Z39: 19 | AA39: 18 | AB39: 37 | AC39: 19 | AD39: 19 | AE39: 38 | AF39: 19 | AG39: 15 | AH39: 34 | AI39: 9 | AJ39: 9 | AK39: 18 | AL39: انثى | AM39: 5/1 | AN39: 571 | AO39: =IF(الجدول1[[#This Row],[عمود39]]="","",الجدول1[[#This Row],[عمود39]]/640*100) -> 89.21875 | AP39: =IF(الجدول1[[#This Row],[عمود40]]="","",evaltion(الجدول1[[#This Row],[عمود40]])) -> ممتاز | AQ39: =IF(الجدول1[[#This Row],[عمود41]]="ممتاز", "ناجح بتقدير ممتاز"&" "&BE39,IF(الجدول1[[#This Row],[عمود41]]="جيد جدا","ناجح بتقدير جيد جدا"&" "&BE39,IF(الجدول1[[#This Row],[عمود41]]="جيد فقط","ناجح بتقدير جيد فقط"&" "&BE39,IF(الجدول1[[#This Row],[عمود41]]="مقبول","ناجح بتقدير مقبول"&" "&BE39,IF(COUNTBLANK($AR39:$BB39)=11,الجدول1[[#This Row],[عمود35]],"يحتاج إلى عناية في : "&textjoin(" و ",$AR39:$BB39)))))) -> ناجح بتقدير ممتاز | BC39: =IF(AND(الجدول1[[#This Row],[عمود43]]="",الجدول1[[#This Row],[عمود44]]="",الجدول1[[#This Row],[عمود45]]="",الجدول1[[#This Row],[عمود46]]="",الجدول1[[#This Row],[عمود47]]="",الجدول1[[#This Row],[عمود48]]="",الجدول1[[#This Row],[عمود49]]="",الجدول1[[#This Row],[عمود50]]="",الجدول1[[#This Row],[عمود51]]="",الجدول1[[#This Row],[عمود52]]="",الجدول1[[#This Row],[عمود53]]=""),"","1") ->  | BD39: =IF(الجدول1[[#This Row],[عمود39]]="","",RANK(AN39,$AN$10:$AN$104)) -> 12 | BE39: =IF(الجدول1[[#This Row],[عمود55]]>10,"",atrteb(الجدول1[[#This Row],[عمود55]])) -> 
B40: =IF(C40<>"",SUBTOTAL(3,$C$10:C40),"") -> 31 | C40: الطالب 31 | E40: 41 | F40: 34 | G40: 75 | H40: 36 | I40: 21 | J40: 57 | K40: 32 | L40: 33 | M40: 65 | N40: 28 | O40: 16 | P40: 44 | Q40: 27 | R40: 25 | S40: 52 | T40: 17 | U40: 17 | V40: 34 | W40: 20 | X40: 12 | Y40: 32 | Z40: 16 | AA40: 20 | AB40: 36 | AC40: 16 | AD40: 9 | AE40: 25 | AF40: 18 | AG40: 14 | AH40: 32 | AI40: 7 | AJ40: 5 | AK40: 12 | AL40: انثى | AM40: 1/1 | AN40: 464 | AO40: =IF(الجدول1[[#This Row],[عمود39]]="","",الجدول1[[#This Row],[عمود39]]/640*100) -> 72.5 | AP40: =IF(الجدول1[[#This Row],[عمود40]]="","",evaltion(الجدول1[[#This Row],[عمود40]])) -> جيد فقط | AQ40: =IF(الجدول1[[#This Row],[عمود41]]="ممتاز", "ناجح بتقدير ممتاز"&" "&BE40,IF(الجدول1[[#This Row],[عمود41]]="جيد جدا","ناجح بتقدير جيد جدا"&" "&BE40,IF(الجدول1[[#This Row],[عمود41]]="جيد فقط","ناجح بتقدير جيد فقط"&" "&BE40,IF(الجدول1[[#This Row],[عمود41]]="مقبول","ناجح بتقدير مقبول"&" "&BE40,IF(COUNTBLANK($AR40:$BB40)=11,الجدول1[[#This Row],[عمود35]],"يحتاج إلى عناية في : "&textjoin(" و ",$AR40:$BB40)))))) -> ناجح بتقدير جيد فقط | BC40: =IF(AND(الجدول1[[#This Row],[عمود43]]="",الجدول1[[#This Row],[عمود44]]="",الجدول1[[#This Row],[عمود45]]="",الجدول1[[#This Row],[عمود46]]="",الجدول1[[#This Row],[عمود47]]="",الجدول1[[#This Row],[عمود48]]="",الجدول1[[#This Row],[عمود49]]="",الجدول1[[#This Row],[عمود50]]="",الجدول1[[#This Row],[عمود51]]="",الجدول1[[#This Row],[عمود52]]="",الجدول1[[#This Row],[عمود53]]=""),"","1") ->  | BD40: =IF(الجدول1[[#This Row],[عمود39]]="","",RANK(AN40,$AN$10:$AN$104)) -> 24 | BE40: =IF(الجدول1[[#This Row],[عمود55]]>10,"",atrteb(الجدول1[[#This Row],[عمود55]])) -> 
B41: =IF(C41<>"",SUBTOTAL(3,$C$10:C41),"") -> 32 | C41: الطالب 32 | E41: 50 | F41: 50 | G41: 100 | H41: 43 | I41: 47 | J41: 90 | K41: 32 | L41: 35 | M41: 67 | N41: 21 | O41: 21 | P41: 42 | Q41: 30 | R41: 30 | S41: 60 | T41: 20 | U41: 23 | V41: 43 | W41: 18 | X41: 20 | Y41: 38 | Z41: 20 | AA41: 18 | AB41: 38 | AC41: 20 | AD41: 16 | AE41: 36 | AF41: 20 | AG41: 17 | AH41: 37 | AI41: 10 | AJ41: 8 | AK41: 18 | AL41: انثى | AM41: 2/1 | AN41: 569 | AO41: =IF(الجدول1[[#This Row],[عمود39]]="","",الجدول1[[#This Row],[عمود39]]/640*100) -> 88.90625 | AP41: =IF(الجدول1[[#This Row],[عمود40]]="","",evaltion(الجدول1[[#This Row],[عمود40]])) -> ممتاز | AQ41: =IF(الجدول1[[#This Row],[عمود41]]="ممتاز", "ناجح بتقدير ممتاز"&" "&BE41,IF(الجدول1[[#This Row],[عمود41]]="جيد جدا","ناجح بتقدير جيد جدا"&" "&BE41,IF(الجدول1[[#This Row],[عمود41]]="جيد فقط","ناجح بتقدير جيد فقط"&" "&BE41,IF(الجدول1[[#This Row],[عمود41]]="مقبول","ناجح بتقدير مقبول"&" "&BE41,IF(COUNTBLANK($AR41:$BB41)=11,الجدول1[[#This Row],[عمود35]],"يحتاج إلى عناية في : "&textjoin(" و ",$AR41:$BB41)))))) -> ناجح بتقدير ممتاز | BC41: =IF(AND(الجدول1[[#This Row],[عمود43]]="",الجدول1[[#This Row],[عمود44]]="",الجدول1[[#This Row],[عمود45]]="",الجدول1[[#This Row],[عمود46]]="",الجدول1[[#This Row],[عمود47]]="",الجدول1[[#This Row],[عمود48]]="",الجدول1[[#This Row],[عمود49]]="",الجدول1[[#This Row],[عمود50]]="",الجدول1[[#This Row],[عمود51]]="",الجدول1[[#This Row],[عمود52]]="",الجدول1[[#This Row],[عمود53]]=""),"","1") ->  | BD41: =IF(الجدول1[[#This Row],[عمود39]]="","",RANK(AN41,$AN$10:$AN$104)) -> 14 | BE41: =IF(الجدول1[[#This Row],[عمود55]]>10,"",atrteb(الجدول1[[#This Row],[عمود55]])) -> 
B42: =IF(C42<>"",SUBTOTAL(3,$C$10:C42),"") -> 33 | C42: الطالب 33 | E42: 32 | F42: 37 | G42: 69 | H42: 44 | I42: 46 | J42: 90 | K42: 22 | L42: 27 | M42: 49 | N42: 16 | O42: 19 | P42: 35 | Q42: 19 | R42: 26 | S42: 45 | T42: 25 | U42: 26 | V42: 51 | W42: 12 | X42: 14 | Y42: 26 | Z42: 13 | AA42: 12 | AB42: =الجدول1[[#This Row],[عمود25]]+الجدول1[[#This Row],[عمود26]] -> 25 | AC42: 13 | AD42: 17 | AE42: 30 | AF42: 12 | AG42: 14 | AH42: 26 | AI42: 8 | AJ42: 7 | AK42: 15 | AL42: انثى | AM42: 4/1 | AO42: =IF(الجدول1[[#This Row],[عمود39]]="","",الجدول1[[#This Row],[عمود39]]/640*100) ->  | AP42: =IF(الجدول1[[#This Row],[عمود40]]="","",evaltion(الجدول1[[#This Row],[عمود40]])) ->  | AQ42: =IF(الجدول1[[#This Row],[عمود41]]="ممتاز", "ناجح بتقدير ممتاز"&" "&BE42,IF(الجدول1[[#This Row],[عمود41]]="جيد جدا","ناجح بتقدير جيد جدا"&" "&BE42,IF(الجدول1[[#This Row],[عمود41]]="جيد فقط","ناجح بتقدير جيد فقط"&" "&BE42,IF(الجدول1[[#This Row],[عمود41]]="مقبول","ناجح بتقدير مقبول"&" "&BE42,IF(COUNTBLANK($AR42:$BB42)=11,الجدول1[[#This Row],[عمود35]],"يحتاج إلى عناية في : "&textjoin(" و ",$AR42:$BB42)))))) -> يحتاج إلى عناية في : الرياضيات | AT42: الرياضيات | BC42: =IF(AND(الجدول1[[#This Row],[عمود43]]="",الجدول1[[#This Row],[عمود44]]="",الجدول1[[#This Row],[عمود45]]="",الجدول1[[#This Row],[عمود46]]="",الجدول1[[#This Row],[عمود47]]="",الجدول1[[#This Row],[عمود48]]="",الجدول1[[#This Row],[عمود49]]="",الجدول1[[#This Row],[عمود50]]="",الجدول1[[#This Row],[عمود51]]="",الجدول1[[#This Row],[عمود52]]="",الجدول1[[#This Row],[عمود53]]=""),"","1") -> 1 | BD42: =IF(الجدول1[[#This Row],[عمود39]]="","",RANK(AN42,$AN$10:$AN$104)) ->  | BE42: =IF(الجدول1[[#This Row],[عمود55]]>10,"",atrteb(الجدول1[[#This Row],[عمود55]])) -> 
B43: =IF(C43<>"",SUBTOTAL(3,$C$10:C43),"") -> 34 | C43: الطالب 34 | E43: 49 | F43: 48 | G43: 97 | H43: 50 | I43: 47 | J43: 97 | K43: 50 | L43: 50 | M43: 100 | N43: 30 | O43: 28 | P43: 58 | Q43: 30 | R43: 30 | S43: 60 | T43: 30 | U43: 30 | V43: 60 | W43: 20 | X43: 19 | Y43: 39 | Z43: 18 | AA43: 20 | AB43: 38 | AC43: 18 | AD43: 19 | AE43: 37 | AF43: 19 | AG43: 20 | AH43: 39 | AI43: 10 | AJ43: 10 | AK43: 20 | AL43: انثى | AM43: 6/1 | AN43: 645 | AO43: =IF(الجدول1[[#This Row],[عمود39]]="","",الجدول1[[#This Row],[عمود39]]/640*100) -> 100.78125 | AP43: =IF(الجدول1[[#This Row],[عمود40]]="","",evaltion(الجدول1[[#This Row],[عمود40]])) -> 0 | AQ43: =IF(الجدول1[[#This Row],[عمود41]]="ممتاز", "ناجح بتقدير ممتاز"&" "&BE43,IF(الجدول1[[#This Row],[عمود41]]="جيد جدا","ناجح بتقدير جيد جدا"&" "&BE43,IF(الجدول1[[#This Row],[عمود41]]="جيد فقط","ناجح بتقدير جيد فقط"&" "&BE43,IF(الجدول1[[#This Row],[عمود41]]="مقبول","ناجح بتقدير مقبول"&" "&BE43,IF(COUNTBLANK($AR43:$BB43)=11,الجدول1[[#This Row],[عمود35]],"يحتاج إلى عناية في : "&textjoin(" و ",$AR43:$BB43)))))) -> 10 | BC43: =IF(AND(الجدول1[[#This Row],[عمود43]]="",الجدول1[[#This Row],[عمود44]]="",الجدول1[[#This Row],[عمود45]]="",الجدول1[[#This Row],[عمود46]]="",الجدول1[[#This Row],[عمود47]]="",الجدول1[[#This Row],[عمود48]]="",الجدول1[[#This Row],[عمود49]]="",الجدول1[[#This Row],[عمود50]]="",الجدول1[[#This Row],[عمود51]]="",الجدول1[[#This Row],[عمود52]]="",الجدول1[[#This Row],[عمود53]]=""),"","1") ->  | BD43: =IF(الجدول1[[#This Row],[عمود39]]="","",RANK(AN43,$AN$10:$AN$104)) -> 2 | BE43: =IF(الجدول1[[#This Row],[عمود55]]>10,"",atrteb(الجدول1[[#This Row],[عمود55]])) -> الترتيب الثاني
B44: =IF(C44<>"",SUBTOTAL(3,$C$10:C44),"") -> 35 | C44: الطالب 35 | G44: 0 | H44: 3 | I44: 4 | J44: 7 | K44: 10 | L44: 4 | M44: 14 | N44: 6 | O44: 7 | P44: 13 | S44: 0 | V44: 0 | W44: 11 | X44: 5 | Y44: 16 | AA44: 11 | AB44: =الجدول1[[#This Row],[عمود25]]+الجدول1[[#This Row],[عمود26]] -> 11 | AE44: 0 | AH44: 0 | AI44: 3 | AJ44: 4 | AK44: 7 | AL44: انثى | AM44: 3/1 | AO44: =IF(الجدول1[[#This Row],[عمود39]]="","",الجدول1[[#This Row],[عمود39]]/640*100) ->  | AP44: =IF(الجدول1[[#This Row],[عمود40]]="","",evaltion(الجدول1[[#This Row],[عمود40]])) ->  | AQ44: =IF(الجدول1[[#This Row],[عمود41]]="ممتاز", "ناجح بتقدير ممتاز"&" "&BE44,IF(الجدول1[[#This Row],[عمود41]]="جيد جدا","ناجح بتقدير جيد جدا"&" "&BE44,IF(الجدول1[[#This Row],[عمود41]]="جيد فقط","ناجح بتقدير جيد فقط"&" "&BE44,IF(الجدول1[[#This Row],[عمود41]]="مقبول","ناجح بتقدير مقبول"&" "&BE44,IF(COUNTBLANK($AR44:$BB44)=11,الجدول1[[#This Row],[عمود35]],"يحتاج إلى عناية في : "&textjoin(" و ",$AR44:$BB44)))))) -> يحتاج إلى عناية في : اللغة العربية و اللغة الانجليزية و الرياضيات و الفيزياء و الكيمياء و الاحياء و التربية الإسلامية و تقنية الملعلومات و التاريخ و الجغرافيا و أساسيات الحياة الاجتماعية | AR44: اللغة العربية | AS44: اللغة الانجليزية | AT44: الرياضيات | AU44: الفيزياء | AV44: الكيمياء | AW44: الاحياء | AX44: التربية الإسلامية | AY44: تقنية الملعلومات | AZ44: التاريخ | BA44: الجغرافيا | BB44: أساسيات الحياة الاجتماعية | BC44: =IF(AND(الجدول1[[#This Row],[عمود43]]="",الجدول1[[#This Row],[عمود44]]="",الجدول1[[#This Row],[عمود45]]="",الجدول1[[#This Row],[عمود46]]="",الجدول1[[#This Row],[عمود47]]="",الجدول1[[#This Row],[عمود48]]="",الجدول1[[#This Row],[عمود49]]="",الجدول1[[#This Row],[عمود50]]="",الجدول1[[#This Row],[عمود51]]="",الجدول1[[#This Row],[عمود52]]="",الجدول1[[#This Row],[عمود53]]=""),"","1") -> 1 | BD44: =IF(الجدول1[[#This Row],[عمود39]]="","",RANK(AN44,$AN$10:$AN$104)) ->  | BE44: =IF(الجدول1[[#This Row],[عمود55]]>10,"",atrteb(الجدول1[[#This Row],[عمود55]])) -> 
B45: =IF(C45<>"",SUBTOTAL(3,$C$10:C45),"") -> 36 | C45: الطالب 36 | E45: 46 | F45: 39 | G45: 85 | H45: 40 | I45: 38 | J45: 78 | K45: 26 | L45: 36 | M45: 62 | N45: 23 | O45: 20 | P45: 43 | Q45: 27 | R45: 27 | S45: 54 | T45: 17 | U45: 16 | V45: 33 | W45: 20 | X45: 16 | Y45: 36 | Z45: 18 | AA45: 20 | AB45: 38 | AC45: 18 | AD45: 15 | AE45: 33 | AF45: 18 | AG45: 10 | AH45: 28 | AI45: 10 | AJ45: 6 | AK45: 16 | AL45: انثى | AM45: 2/1 | AN45: 506 | AO45: =IF(الجدول1[[#This Row],[عمود39]]="","",الجدول1[[#This Row],[عمود39]]/640*100) -> 79.0625 | AP45: =IF(الجدول1[[#This Row],[عمود40]]="","",evaltion(الجدول1[[#This Row],[عمود40]])) -> جيد جدا | AQ45: =IF(الجدول1[[#This Row],[عمود41]]="ممتاز", "ناجح بتقدير ممتاز"&" "&BE45,IF(الجدول1[[#This Row],[عمود41]]="جيد جدا","ناجح بتقدير جيد جدا"&" "&BE45,IF(الجدول1[[#This Row],[عمود41]]="جيد فقط","ناجح بتقدير جيد فقط"&" "&BE45,IF(الجدول1[[#This Row],[عمود41]]="مقبول","ناجح بتقدير مقبول"&" "&BE45,IF(COUNTBLANK($AR45:$BB45)=11,الجدول1[[#This Row],[عمود35]],"يحتاج إلى عناية في : "&textjoin(" و ",$AR45:$BB45)))))) -> ناجح بتقدير جيد جدا | BC45: =IF(AND(الجدول1[[#This Row],[عمود43]]="",الجدول1[[#This Row],[عمود44]]="",الجدول1[[#This Row],[عمود45]]="",الجدول1[[#This Row],[عمود46]]="",الجدول1[[#This Row],[عمود47]]="",الجدول1[[#This Row],[عمود48]]="",الجدول1[[#This Row],[عمود49]]="",الجدول1[[#This Row],[عمود50]]="",الجدول1[[#This Row],[عمود51]]="",الجدول1[[#This Row],[عمود52]]="",الجدول1[[#This Row],[عمود53]]=""),"","1") ->  | BD45: =IF(الجدول1[[#This Row],[عمود39]]="","",RANK(AN45,$AN$10:$AN$104)) -> 21 | BE45: =IF(الجدول1[[#This Row],[عمود55]]>10,"",atrteb(الجدول1[[#This Row],[عمود55]])) -> 
B46: =IF(C46<>"",SUBTOTAL(3,$C$10:C46),"") -> 37 | C46: الطالب 37 | E46: 49 | F46: 49 | G46: 98 | H46: 48 | I46: 50 | J46: 98 | K46: 43 | L46: 37 | M46: 80 | N46: 28 | O46: 23 | P46: 51 | Q46: 29 | R46: 30 | S46: 59 | T46: 22 | U46: 22 | V46: 44 | W46: 20 | X46: 19 | Y46: 39 | Z46: 20 | AA46: 20 | AB46: 40 | AC46: 20 | AD46: 12 | AE46: 32 | AF46: 20 | AG46: 15 | AH46: 35 | AI46: 9 | AJ46: 9 | AK46: 18 | AL46: انثى | AM46: 1/1 | AN46: 594 | AO46: =IF(الجدول1[[#This Row],[عمود39]]="","",الجدول1[[#This Row],[عمود39]]/640*100) -> 92.8125 | AP46: =IF(الجدول1[[#This Row],[عمود40]]="","",evaltion(الجدول1[[#This Row],[عمود40]])) -> ممتاز | AQ46: =IF(الجدول1[[#This Row],[عمود41]]="ممتاز", "ناجح بتقدير ممتاز"&" "&BE46,IF(الجدول1[[#This Row],[عمود41]]="جيد جدا","ناجح بتقدير جيد جدا"&" "&BE46,IF(الجدول1[[#This Row],[عمود41]]="جيد فقط","ناجح بتقدير جيد فقط"&" "&BE46,IF(الجدول1[[#This Row],[عمود41]]="مقبول","ناجح بتقدير مقبول"&" "&BE46,IF(COUNTBLANK($AR46:$BB46)=11,الجدول1[[#This Row],[عمود35]],"يحتاج إلى عناية في : "&textjoin(" و ",$AR46:$BB46)))))) -> ناجح بتقدير ممتاز الترتيب السابع | BC46: =IF(AND(الجدول1[[#This Row],[عمود43]]="",الجدول1[[#This Row],[عمود44]]="",الجدول1[[#This Row],[عمود45]]="",الجدول1[[#This Row],[عمود46]]="",الجدول1[[#This Row],[عمود47]]="",الجدول1[[#This Row],[عمود48]]="",الجدول1[[#This Row],[عمود49]]="",الجدول1[[#This Row],[عمود50]]="",الجدول1[[#This Row],[عمود51]]="",الجدول1[[#This Row],[عمود52]]="",الجدول1[[#This Row],[عمود53]]=""),"","1") ->  | BD46: =IF(الجدول1[[#This Row],[عمود39]]="","",RANK(AN46,$AN$10:$AN$104)) -> 7 | BE46: =IF(الجدول1[[#This Row],[عمود55]]>10,"",atrteb(الجدول1[[#This Row],[عمود55]])) -> الترتيب السابع
B47: =IF(C47<>"",SUBTOTAL(3,$C$10:C47),"") -> 38 | C47: الطالب 38 | E47: 42 | F47: 40 | G47: 82 | H47: 48 | I47: 50 | J47: 98 | K47: 34 | L47: 39 | M47: 73 | N47: 15 | O47: 22 | P47: 37 | Q47: 28 | R47: 30 | S47: 58 | T47: 18 | U47: 28 | V47: 46 | W47: 19 | X47: 18 | Y47: 37 | Z47: 17 | AA47: 19 | AB47: 36 | AC47: 17 | AD47: 15 | AE47: 32 | AF47: 17 | AG47: 16 | AH47: 33 | AI47: 10 | AJ47: 8 | AK47: 18 | AL47: انثى | AM47: 2/1 | AN47: 550 | AO47: =IF(الجدول1[[#This Row],[عمود39]]="","",الجدول1[[#This Row],[عمود39]]/640*100) -> 85.9375 | AP47: =IF(الجدول1[[#This Row],[عمود40]]="","",evaltion(الجدول1[[#This Row],[عمود40]])) -> ممتاز | AQ47: =IF(الجدول1[[#This Row],[عمود41]]="ممتاز", "ناجح بتقدير ممتاز"&" "&BE47,IF(الجدول1[[#This Row],[عمود41]]="جيد جدا","ناجح بتقدير جيد جدا"&" "&BE47,IF(الجدول1[[#This Row],[عمود41]]="جيد فقط","ناجح بتقدير جيد فقط"&" "&BE47,IF(الجدول1[[#This Row],[عمود41]]="مقبول","ناجح بتقدير مقبول"&" "&BE47,IF(COUNTBLANK($AR47:$BB47)=11,الجدول1[[#This Row],[عمود35]],"يحتاج إلى عناية في : "&textjoin(" و ",$AR47:$BB47)))))) -> ناجح بتقدير ممتاز | BC47: =IF(AND(الجدول1[[#This Row],[عمود43]]="",الجدول1[[#This Row],[عمود44]]="",الجدول1[[#This Row],[عمود45]]="",الجدول1[[#This Row],[عمود46]]="",الجدول1[[#This Row],[عمود47]]="",الجدول1[[#This Row],[عمود48]]="",الجدول1[[#This Row],[عمود49]]="",الجدول1[[#This Row],[عمود50]]="",الجدول1[[#This Row],[عمود51]]="",الجدول1[[#This Row],[عمود52]]="",الجدول1[[#This Row],[عمود53]]=""),"","1") ->  | BD47: =IF(الجدول1[[#This Row],[عمود39]]="","",RANK(AN47,$AN$10:$AN$104)) -> 18 | BE47: =IF(الجدول1[[#This Row],[عمود55]]>10,"",atrteb(الجدول1[[#This Row],[عمود55]])) -> 
B48: =IF(C48<>"",SUBTOTAL(3,$C$10:C48),"") -> 39 | C48: الطالب 39 | E48: 21 | F48: 24 | G48: 45 | H48: 10 | I48: 5 | J48: 15 | K48: 15 | L48: 2 | M48: 17 | N48: 10 | O48: 3 | P48: 13 | Q48: 15 | R48: 8 | S48: 23 | T48: 7 | U48: 8 | V48: 15 | W48: 10 | X48: 5 | Y48: 15 | Z48: 9 | AA48: 10 | AB48: =الجدول1[[#This Row],[عمود25]]+الجدول1[[#This Row],[عمود26]] -> 19 | AC48: 9 | AD48: 4 | AE48: 13 | AF48: 8 | AG48: 4 | AH48: 12 | AI48: 4 | AJ48: 4 | AK48: 8 | AL48: انثى | AM48: 2/1 | AO48: =IF(الجدول1[[#This Row],[عمود39]]="","",الجدول1[[#This Row],[عمود39]]/640*100) ->  | AP48: =IF(الجدول1[[#This Row],[عمود40]]="","",evaltion(الجدول1[[#This Row],[عمود40]])) ->  | AQ48: =IF(الجدول1[[#This Row],[عمود41]]="ممتاز", "ناجح بتقدير ممتاز"&" "&BE48,IF(الجدول1[[#This Row],[عمود41]]="جيد جدا","ناجح بتقدير جيد جدا"&" "&BE48,IF(الجدول1[[#This Row],[عمود41]]="جيد فقط","ناجح بتقدير جيد فقط"&" "&BE48,IF(الجدول1[[#This Row],[عمود41]]="مقبول","ناجح بتقدير مقبول"&" "&BE48,IF(COUNTBLANK($AR48:$BB48)=11,الجدول1[[#This Row],[عمود35]],"يحتاج إلى عناية في : "&textjoin(" و ",$AR48:$BB48)))))) -> يحتاج إلى عناية في : اللغة العربية و اللغة الانجليزية و الرياضيات و الفيزياء و الكيمياء و الاحياء و التربية الإسلامية و تقنية الملعلومات و التاريخ و الجغرافيا و أساسيات الحياة الاجتماعية | AR48: اللغة العربية | AS48: اللغة الانجليزية | AT48: الرياضيات | AU48: الفيزياء | AV48: الكيمياء | AW48: الاحياء | AX48: التربية الإسلامية | AY48: تقنية الملعلومات | AZ48: التاريخ | BA48: الجغرافيا | BB48: أساسيات الحياة الاجتماعية | BC48: =IF(AND(الجدول1[[#This Row],[عمود43]]="",الجدول1[[#This Row],[عمود44]]="",الجدول1[[#This Row],[عمود45]]="",الجدول1[[#This Row],[عمود46]]="",الجدول1[[#This Row],[عمود47]]="",الجدول1[[#This Row],[عمود48]]="",الجدول1[[#This Row],[عمود49]]="",الجدول1[[#This Row],[عمود50]]="",الجدول1[[#This Row],[عمود51]]="",الجدول1[[#This Row],[عمود52]]="",الجدول1[[#This Row],[عمود53]]=""),"","1") -> 1 | BD48: =IF(الجدول1[[#This Row],[عمود39]]="","",RANK(AN48,$AN$10:$AN$104)) ->  | BE48: =IF(الجدول1[[#This Row],[عمود55]]>10,"",atrteb(الجدول1[[#This Row],[عمود55]])) -> 
B49: =IF(C49<>"",SUBTOTAL(3,$C$10:C49),"") -> 40 | C49: الطالب 40 | E49: 33 | F49: 28 | G49: 61 | H49: 27 | I49: 19 | J49: 46 | K49: 24 | L49: 17 | M49: 41 | N49: 11 | O49: 15 | P49: 26 | Q49: 23 | R49: 23 | S49: 46 | T49: 14 | U49: 12 | V49: 26 | W49: 13 | X49: 10 | Y49: 23 | Z49: 11 | AA49: 13 | AB49: =الجدول1[[#This Row],[عمود25]]+الجدول1[[#This Row],[عمود26]] -> 24 | AC49: 11 | AD49: 6 | AE49: 17 | AF49: 10 | AG49: 10 | AH49: 20 | AI49: 6 | AJ49: 6 | AK49: 12 | AL49: انثى | AM49: 2/1 | AO49: =IF(الجدول1[[#This Row],[عمود39]]="","",الجدول1[[#This Row],[عمود39]]/640*100) ->  | AP49: =IF(الجدول1[[#This Row],[عمود40]]="","",evaltion(الجدول1[[#This Row],[عمود40]])) ->  | AQ49: =IF(الجدول1[[#This Row],[عمود41]]="ممتاز", "ناجح بتقدير ممتاز"&" "&BE49,IF(الجدول1[[#This Row],[عمود41]]="جيد جدا","ناجح بتقدير جيد جدا"&" "&BE49,IF(الجدول1[[#This Row],[عمود41]]="جيد فقط","ناجح بتقدير جيد فقط"&" "&BE49,IF(الجدول1[[#This Row],[عمود41]]="مقبول","ناجح بتقدير مقبول"&" "&BE49,IF(COUNTBLANK($AR49:$BB49)=11,الجدول1[[#This Row],[عمود35]],"يحتاج إلى عناية في : "&textjoin(" و ",$AR49:$BB49)))))) -> يحتاج إلى عناية في : اللغة الانجليزية و الرياضيات و الفيزياء و الاحياء و التاريخ | AS49: اللغة الانجليزية | AT49: الرياضيات | AU49: الفيزياء | AW49: الاحياء | AZ49: التاريخ | BC49: =IF(AND(الجدول1[[#This Row],[عمود43]]="",الجدول1[[#This Row],[عمود44]]="",الجدول1[[#This Row],[عمود45]]="",الجدول1[[#This Row],[عمود46]]="",الجدول1[[#This Row],[عمود47]]="",الجدول1[[#This Row],[عمود48]]="",الجدول1[[#This Row],[عمود49]]="",الجدول1[[#This Row],[عمود50]]="",الجدول1[[#This Row],[عمود51]]="",الجدول1[[#This Row],[عمود52]]="",الجدول1[[#This Row],[عمود53]]=""),"","1") -> 1 | BD49: =IF(الجدول1[[#This Row],[عمود39]]="","",RANK(AN49,$AN$10:$AN$104)) ->  | BE49: =IF(الجدول1[[#This Row],[عمود55]]>10,"",atrteb(الجدول1[[#This Row],[عمود55]])) -> 
B50: =IF(C50<>"",SUBTOTAL(3,$C$10:C50),"") -> 41 | C50: الطالب 41 | E50: 25 | F50: 31 | G50: 56 | H50: 36 | I50: 32 | J50: 68 | K50: 44 | L50: 26 | M50: 70 | N50: 8 | O50: 10 | P50: 18 | Q50: 23 | R50: 20 | S50: 43 | T50: 12 | U50: 17 | V50: 29 | W50: 15 | X50: 12 | Y50: 27 | Z50: 11 | AA50: 15 | AB50: =الجدول1[[#This Row],[عمود25]]+الجدول1[[#This Row],[عمود26]] -> 26 | AC50: 11 | AD50: 11 | AE50: 22 | AF50: 11 | AG50: 7 | AH50: 18 | AI50: 5 | AJ50: 5 | AK50: 10 | AL50: انثى | AM50: 5/1 | AO50: =IF(الجدول1[[#This Row],[عمود39]]="","",الجدول1[[#This Row],[عمود39]]/640*100) ->  | AP50: =IF(الجدول1[[#This Row],[عمود40]]="","",evaltion(الجدول1[[#This Row],[عمود40]])) ->  | AQ50: =IF(الجدول1[[#This Row],[عمود41]]="ممتاز", "ناجح بتقدير ممتاز"&" "&BE50,IF(الجدول1[[#This Row],[عمود41]]="جيد جدا","ناجح بتقدير جيد جدا"&" "&BE50,IF(الجدول1[[#This Row],[عمود41]]="جيد فقط","ناجح بتقدير جيد فقط"&" "&BE50,IF(الجدول1[[#This Row],[عمود41]]="مقبول","ناجح بتقدير مقبول"&" "&BE50,IF(COUNTBLANK($AR50:$BB50)=11,الجدول1[[#This Row],[عمود35]],"يحتاج إلى عناية في : "&textjoin(" و ",$AR50:$BB50)))))) -> يحتاج إلى عناية في : الفيزياء و الاحياء و الجغرافيا | AU50: الفيزياء | AW50: الاحياء | BA50: الجغرافيا | BC50: =IF(AND(الجدول1[[#This Row],[عمود43]]="",الجدول1[[#This Row],[عمود44]]="",الجدول1[[#This Row],[عمود45]]="",الجدول1[[#This Row],[عمود46]]="",الجدول1[[#This Row],[عمود47]]="",الجدول1[[#This Row],[عمود48]]="",الجدول1[[#This Row],[عمود49]]="",الجدول1[[#This Row],[عمود50]]="",الجدول1[[#This Row],[عمود51]]="",الجدول1[[#This Row],[عمود52]]="",الجدول1[[#This Row],[عمود53]]=""),"","1") -> 1 | BD50: =IF(الجدول1[[#This Row],[عمود39]]="","",RANK(AN50,$AN$10:$AN$104)) ->  | BE50: =IF(الجدول1[[#This Row],[عمود55]]>10,"",atrteb(الجدول1[[#This Row],[عمود55]])) -> 
B51: =IF(C51<>"",SUBTOTAL(3,$C$10:C51),"") -> 42 | C51: الطالب 42 | E51: 20 | F51: 24 | G51: 44 | H51: 18 | I51: 15 | J51: 33 | K51: 26 | L51: 7 | M51: 33 | N51: 12 | O51: 5 | P51: 17 | Q51: 19 | R51: 8 | S51: 27 | T51: 17 | U51: 14 | V51: 31 | W51: 13 | X51: 12 | Y51: 25 | Z51: 6 | AA51: 13 | AB51: =الجدول1[[#This Row],[عمود25]]+الجدول1[[#This Row],[عمود26]] -> 19 | AC51: 6 | AD51: 7 | AE51: 13 | AF51: 8 | AG51: 7 | AH51: 15 | AI51: 4 | AJ51: 4 | AK51: 8 | AL51: انثى | AM51: 6/1 | AO51: =IF(الجدول1[[#This Row],[عمود39]]="","",الجدول1[[#This Row],[عمود39]]/640*100) ->  | AP51: =IF(الجدول1[[#This Row],[عمود40]]="","",evaltion(الجدول1[[#This Row],[عمود40]])) ->  | AQ51: =IF(الجدول1[[#This Row],[عمود41]]="ممتاز", "ناجح بتقدير ممتاز"&" "&BE51,IF(الجدول1[[#This Row],[عمود41]]="جيد جدا","ناجح بتقدير جيد جدا"&" "&BE51,IF(الجدول1[[#This Row],[عمود41]]="جيد فقط","ناجح بتقدير جيد فقط"&" "&BE51,IF(الجدول1[[#This Row],[عمود41]]="مقبول","ناجح بتقدير مقبول"&" "&BE51,IF(COUNTBLANK($AR51:$BB51)=11,الجدول1[[#This Row],[عمود35]],"يحتاج إلى عناية في : "&textjoin(" و ",$AR51:$BB51)))))) -> يحتاج إلى عناية في : اللغة العربية و اللغة الانجليزية و الرياضيات و الفيزياء و الكيمياء و تقنية الملعلومات و التاريخ و الجغرافيا و أساسيات الحياة الاجتماعية | AR51: اللغة العربية | AS51: اللغة الانجليزية | AT51: الرياضيات | AU51: الفيزياء | AV51: الكيمياء | AY51: تقنية الملعلومات | AZ51: التاريخ | BA51: الجغرافيا | BB51: أساسيات الحياة الاجتماعية | BC51: =IF(AND(الجدول1[[#This Row],[عمود43]]="",الجدول1[[#This Row],[عمود44]]="",الجدول1[[#This Row],[عمود45]]="",الجدول1[[#This Row],[عمود46]]="",الجدول1[[#This Row],[عمود47]]="",الجدول1[[#This Row],[عمود48]]="",الجدول1[[#This Row],[عمود49]]="",الجدول1[[#This Row],[عمود50]]="",الجدول1[[#This Row],[عمود51]]="",الجدول1[[#This Row],[عمود52]]="",الجدول1[[#This Row],[عمود53]]=""),"","1") -> 1 | BD51: =IF(الجدول1[[#This Row],[عمود39]]="","",RANK(AN51,$AN$10:$AN$104)) ->  | BE51: =IF(الجدول1[[#This Row],[عمود55]]>10,"",atrteb(الجدول1[[#This Row],[عمود55]])) -> 
B52: =IF(C52<>"",SUBTOTAL(3,$C$10:C52),"") -> 43 | C52: الطالب 43 | E52: 35 | F52: 35 | G52: 70 | H52: 11 | I52: 9 | J52: 20 | K52: 26 | L52: 10 | M52: 36 | N52: 21 | O52: 15 | P52: 36 | Q52: 27 | R52: 27 | S52: 54 | T52: 11 | U52: 16 | V52: 27 | W52: 15 | X52: 13 | Y52: 28 | Z52: 15 | AA52: 15 | AB52: =الجدول1[[#This Row],[عمود25]]+الجدول1[[#This Row],[عمود26]] -> 30 | AC52: 15 | AD52: 10 | AE52: 25 | AF52: 12 | AG52: 9 | AH52: 21 | AI52: 7 | AJ52: 6 | AK52: 13 | AL52: انثى | AM52: 1/1 | AO52: =IF(الجدول1[[#This Row],[عمود39]]="","",الجدول1[[#This Row],[عمود39]]/640*100) ->  | AP52: =IF(الجدول1[[#This Row],[عمود40]]="","",evaltion(الجدول1[[#This Row],[عمود40]])) ->  | AQ52: =IF(الجدول1[[#This Row],[عمود41]]="ممتاز", "ناجح بتقدير ممتاز"&" "&BE52,IF(الجدول1[[#This Row],[عمود41]]="جيد جدا","ناجح بتقدير جيد جدا"&" "&BE52,IF(الجدول1[[#This Row],[عمود41]]="جيد فقط","ناجح بتقدير جيد فقط"&" "&BE52,IF(الجدول1[[#This Row],[عمود41]]="مقبول","ناجح بتقدير مقبول"&" "&BE52,IF(COUNTBLANK($AR52:$BB52)=11,الجدول1[[#This Row],[عمود35]],"يحتاج إلى عناية في : "&textjoin(" و ",$AR52:$BB52)))))) -> يحتاج إلى عناية في : اللغة الانجليزية و الرياضيات و الاحياء | AS52: اللغة الانجليزية | AT52: الرياضيات | AW52: الاحياء | BC52: =IF(AND(الجدول1[[#This Row],[عمود43]]="",الجدول1[[#This Row],[عمود44]]="",الجدول1[[#This Row],[عمود45]]="",الجدول1[[#This Row],[عمود46]]="",الجدول1[[#This Row],[عمود47]]="",الجدول1[[#This Row],[عمود48]]="",الجدول1[[#This Row],[عمود49]]="",الجدول1[[#This Row],[عمود50]]="",الجدول1[[#This Row],[عمود51]]="",الجدول1[[#This Row],[عمود52]]="",الجدول1[[#This Row],[عمود53]]=""),"","1") -> 1 | BD52: =IF(الجدول1[[#This Row],[عمود39]]="","",RANK(AN52,$AN$10:$AN$104)) ->  | BE52: =IF(الجدول1[[#This Row],[عمود55]]>10,"",atrteb(الجدول1[[#This Row],[عمود55]])) -> 
B53: =IF(C53<>"",SUBTOTAL(3,$C$10:C53),"") -> 44 | C53: الطالب 44 | E53: 31 | F53: 28 | G53: 59 | H53: 29 | I53: 10 | J53: 39 | K53: 42 | L53: 11 | M53: 53 | N53: 11 | O53: 10 | P53: 21 | Q53: 17 | R53: 16 | S53: 33 | T53: 23 | U53: 16 | V53: 39 | W53: 17 | X53: 6 | Y53: 23 | Z53: 11 | AA53: 17 | AB53: =الجدول1[[#This Row],[عمود25]]+الجدول1[[#This Row],[عمود26]] -> 28 | AC53: 11 | AD53: 5 | AE53: 16 | AF53: 12 | AG53: 7 | AH53: 19 | AI53: 4 | AJ53: 7 | AK53: 11 | AL53: انثى | AM53: 6/1 | AO53: =IF(الجدول1[[#This Row],[عمود39]]="","",الجدول1[[#This Row],[عمود39]]/640*100) ->  | AP53: =IF(الجدول1[[#This Row],[عمود40]]="","",evaltion(الجدول1[[#This Row],[عمود40]])) ->  | AQ53: =IF(الجدول1[[#This Row],[عمود41]]="ممتاز", "ناجح بتقدير ممتاز"&" "&BE53,IF(الجدول1[[#This Row],[عمود41]]="جيد جدا","ناجح بتقدير جيد جدا"&" "&BE53,IF(الجدول1[[#This Row],[عمود41]]="جيد فقط","ناجح بتقدير جيد فقط"&" "&BE53,IF(الجدول1[[#This Row],[عمود41]]="مقبول","ناجح بتقدير مقبول"&" "&BE53,IF(COUNTBLANK($AR53:$BB53)=11,الجدول1[[#This Row],[عمود35]],"يحتاج إلى عناية في : "&textjoin(" و ",$AR53:$BB53)))))) -> يحتاج إلى عناية في : اللغة الانجليزية و الفيزياء و التاريخ و الجغرافيا | AS53: اللغة الانجليزية | AU53: الفيزياء | AZ53: التاريخ | BA53: الجغرافيا | BC53: =IF(AND(الجدول1[[#This Row],[عمود43]]="",الجدول1[[#This Row],[عمود44]]="",الجدول1[[#This Row],[عمود45]]="",الجدول1[[#This Row],[عمود46]]="",الجدول1[[#This Row],[عمود47]]="",الجدول1[[#This Row],[عمود48]]="",الجدول1[[#This Row],[عمود49]]="",الجدول1[[#This Row],[عمود50]]="",الجدول1[[#This Row],[عمود51]]="",الجدول1[[#This Row],[عمود52]]="",الجدول1[[#This Row],[عمود53]]=""),"","1") -> 1 | BD53: =IF(الجدول1[[#This Row],[عمود39]]="","",RANK(AN53,$AN$10:$AN$104)) ->  | BE53: =IF(الجدول1[[#This Row],[عمود55]]>10,"",atrteb(الجدول1[[#This Row],[عمود55]])) -> 
B54: =IF(C54<>"",SUBTOTAL(3,$C$10:C54),"") -> 45 | C54: الطالب 45 | E54: 25 | F54: 6 | G54: 31 | H54: 30 | I54: 8 | J54: 38 | K54: 15 | L54: 7 | M54: 22 | N54: 9 | O54: 3 | P54: 12 | Q54: 15 | R54: 3 | S54: 18 | T54: 8 | U54: 5 | V54: 13 | W54: 11 | X54: 4 | Y54: 15 | Z54: 11 | AA54: 11 | AB54: =الجدول1[[#This Row],[عمود25]]+الجدول1[[#This Row],[عمود26]] -> 22 | AC54: 11 | AD54: 5 | AE54: 16 | AF54: 7 | AG54: 2 | AH54: 9 | AI54: 6 | AJ54: 4 | AK54: 10 | AL54: انثى | AM54: 3/1 | AO54: =IF(الجدول1[[#This Row],[عمود39]]="","",الجدول1[[#This Row],[عمود39]]/640*100) ->  | AP54: =IF(الجدول1[[#This Row],[عمود40]]="","",evaltion(الجدول1[[#This Row],[عمود40]])) ->  | AQ54: =IF(الجدول1[[#This Row],[عمود41]]="ممتاز", "ناجح بتقدير ممتاز"&" "&BE54,IF(الجدول1[[#This Row],[عمود41]]="جيد جدا","ناجح بتقدير جيد جدا"&" "&BE54,IF(الجدول1[[#This Row],[عمود41]]="جيد فقط","ناجح بتقدير جيد فقط"&" "&BE54,IF(الجدول1[[#This Row],[عمود41]]="مقبول","ناجح بتقدير مقبول"&" "&BE54,IF(COUNTBLANK($AR54:$BB54)=11,الجدول1[[#This Row],[عمود35]],"يحتاج إلى عناية في : "&textjoin(" و ",$AR54:$BB54)))))) -> يحتاج إلى عناية في : اللغة العربية و اللغة الانجليزية و الرياضيات و الفيزياء و الكيمياء و الاحياء و التربية الإسلامية و التاريخ و الجغرافيا | AR54: اللغة العربية | AS54: اللغة الانجليزية | AT54: الرياضيات | AU54: الفيزياء | AV54: الكيمياء | AW54: الاحياء | AX54: التربية الإسلامية | AZ54: التاريخ | BA54: الجغرافيا | BC54: =IF(AND(الجدول1[[#This Row],[عمود43]]="",الجدول1[[#This Row],[عمود44]]="",الجدول1[[#This Row],[عمود45]]="",الجدول1[[#This Row],[عمود46]]="",الجدول1[[#This Row],[عمود47]]="",الجدول1[[#This Row],[عمود48]]="",الجدول1[[#This Row],[عمود49]]="",الجدول1[[#This Row],[عمود50]]="",الجدول1[[#This Row],[عمود51]]="",الجدول1[[#This Row],[عمود52]]="",الجدول1[[#This Row],[عمود53]]=""),"","1") -> 1 | BD54: =IF(الجدول1[[#This Row],[عمود39]]="","",RANK(AN54,$AN$10:$AN$104)) ->  | BE54: =IF(الجدول1[[#This Row],[عمود55]]>10,"",atrteb(الجدول1[[#This Row],[عمود55]])) -> 
B55: =IF(C55<>"",SUBTOTAL(3,$C$10:C55),"") -> 46 | C55: الطالب 46 | E55: 20 | F55: 16 | G55: 36 | H55: 15 | I55: 5 | J55: 20 | K55: 24 | L55: 9 | M55: 33 | N55: 7 | O55: 7 | P55: 14 | Q55: 13 | R55: 5 | S55: 18 | T55: 9 | U55: 7 | V55: 16 | W55: 12 | X55: 7 | Y55: 19 | Z55: 10 | AA55: 12 | AB55: =الجدول1[[#This Row],[عمود25]]+الجدول1[[#This Row],[عمود26]] -> 22 | AC55: 10 | AD55: 9 | AE55: 19 | AF55: 7 | AG55: 3 | AH55: 10 | AI55: 6 | AJ55: 4 | AK55: 10 | AL55: انثى | AM55: 6/1 | AO55: =IF(الجدول1[[#This Row],[عمود39]]="","",الجدول1[[#This Row],[عمود39]]/640*100) ->  | AP55: =IF(الجدول1[[#This Row],[عمود40]]="","",evaltion(الجدول1[[#This Row],[عمود40]])) ->  | AQ55: =IF(الجدول1[[#This Row],[عمود41]]="ممتاز", "ناجح بتقدير ممتاز"&" "&BE55,IF(الجدول1[[#This Row],[عمود41]]="جيد جدا","ناجح بتقدير جيد جدا"&" "&BE55,IF(الجدول1[[#This Row],[عمود41]]="جيد فقط","ناجح بتقدير جيد فقط"&" "&BE55,IF(الجدول1[[#This Row],[عمود41]]="مقبول","ناجح بتقدير مقبول"&" "&BE55,IF(COUNTBLANK($AR55:$BB55)=11,الجدول1[[#This Row],[عمود35]],"يحتاج إلى عناية في : "&textjoin(" و ",$AR55:$BB55)))))) -> يحتاج إلى عناية في : اللغة العربية و اللغة الانجليزية و الرياضيات و الفيزياء و الكيمياء و الاحياء و التربية الإسلامية و التاريخ و الجغرافيا | AR55: اللغة العربية | AS55: اللغة الانجليزية | AT55: الرياضيات | AU55: الفيزياء | AV55: الكيمياء | AW55: الاحياء | AX55: التربية الإسلامية | AZ55: التاريخ | BA55: الجغرافيا | BC55: =IF(AND(الجدول1[[#This Row],[عمود43]]="",الجدول1[[#This Row],[عمود44]]="",الجدول1[[#This Row],[عمود45]]="",الجدول1[[#This Row],[عمود46]]="",الجدول1[[#This Row],[عمود47]]="",الجدول1[[#This Row],[عمود48]]="",الجدول1[[#This Row],[عمود49]]="",الجدول1[[#This Row],[عمود50]]="",الجدول1[[#This Row],[عمود51]]="",الجدول1[[#This Row],[عمود52]]="",الجدول1[[#This Row],[عمود53]]=""),"","1") -> 1 | BD55: =IF(الجدول1[[#This Row],[عمود39]]="","",RANK(AN55,$AN$10:$AN$104)) ->  | BE55: =IF(الجدول1[[#This Row],[عمود55]]>10,"",atrteb(الجدول1[[#This Row],[عمود55]])) -> 
B56: =IF(C56<>"",SUBTOTAL(3,$C$10:C56),"") -> 47 | C56: الطالب 47 | E56: 44 | F56: 43 | G56: 87 | H56: 42 | I56: 38 | J56: 80 | K56: 24 | L56: 24 | M56: 48 | N56: 17 | O56: 15 | P56: 32 | Q56: 24 | R56: 25 | S56: 49 | T56: 16 | U56: 14 | V56: 30 | W56: 18 | X56: 8 | Y56: 26 | Z56: 13 | AA56: 18 | AB56: =الجدول1[[#This Row],[عمود25]]+الجدول1[[#This Row],[عمود26]] -> 31 | AC56: 13 | AD56: 11 | AE56: 24 | AF56: 14 | AG56: 11 | AH56: 25 | AI56: 9 | AJ56: 7 | AK56: 16 | AL56: انثى | AM56: 3/1 | AO56: =IF(الجدول1[[#This Row],[عمود39]]="","",الجدول1[[#This Row],[عمود39]]/640*100) ->  | AP56: =IF(الجدول1[[#This Row],[عمود40]]="","",evaltion(الجدول1[[#This Row],[عمود40]])) ->  | AQ56: =IF(الجدول1[[#This Row],[عمود41]]="ممتاز", "ناجح بتقدير ممتاز"&" "&BE56,IF(الجدول1[[#This Row],[عمود41]]="جيد جدا","ناجح بتقدير جيد جدا"&" "&BE56,IF(الجدول1[[#This Row],[عمود41]]="جيد فقط","ناجح بتقدير جيد فقط"&" "&BE56,IF(الجدول1[[#This Row],[عمود41]]="مقبول","ناجح بتقدير مقبول"&" "&BE56,IF(COUNTBLANK($AR56:$BB56)=11,الجدول1[[#This Row],[عمود35]],"يحتاج إلى عناية في : "&textjoin(" و ",$AR56:$BB56)))))) -> يحتاج إلى عناية في : الرياضيات | AT56: الرياضيات | BC56: =IF(AND(الجدول1[[#This Row],[عمود43]]="",الجدول1[[#This Row],[عمود44]]="",الجدول1[[#This Row],[عمود45]]="",الجدول1[[#This Row],[عمود46]]="",الجدول1[[#This Row],[عمود47]]="",الجدول1[[#This Row],[عمود48]]="",الجدول1[[#This Row],[عمود49]]="",الجدول1[[#This Row],[عمود50]]="",الجدول1[[#This Row],[عمود51]]="",الجدول1[[#This Row],[عمود52]]="",الجدول1[[#This Row],[عمود53]]=""),"","1") -> 1 | BD56: =IF(الجدول1[[#This Row],[عمود39]]="","",RANK(AN56,$AN$10:$AN$104)) ->  | BE56: =IF(الجدول1[[#This Row],[عمود55]]>10,"",atrteb(الجدول1[[#This Row],[عمود55]])) -> 
B57: =IF(C57<>"",SUBTOTAL(3,$C$10:C57),"") -> 48 | C57: الطالب 48 | E57: 32 | F57: 28 | G57: 60 | H57: 26 | I57: 10 | J57: 36 | K57: 14 | L57: 5 | M57: 19 | N57: 15 | O57: 16 | P57: 31 | Q57: 14 | R57: 12 | S57: 26 | T57: 20 | U57: 15 | V57: 35 | W57: 15 | X57: 14 | Y57: 29 | Z57: 11 | AA57: 15 | AB57: =الجدول1[[#This Row],[عمود25]]+الجدول1[[#This Row],[عمود26]] -> 26 | AC57: 11 | AD57: 8 | AE57: 19 | AF57: 9 | AG57: 7 | AH57: 16 | AI57: 10 | AJ57: 6 | AK57: 16 | AL57: انثى | AM57: 4/1 | AO57: =IF(الجدول1[[#This Row],[عمود39]]="","",الجدول1[[#This Row],[عمود39]]/640*100) ->  | AP57: =IF(الجدول1[[#This Row],[عمود40]]="","",evaltion(الجدول1[[#This Row],[عمود40]])) ->  | AQ57: =IF(الجدول1[[#This Row],[عمود41]]="ممتاز", "ناجح بتقدير ممتاز"&" "&BE57,IF(الجدول1[[#This Row],[عمود41]]="جيد جدا","ناجح بتقدير جيد جدا"&" "&BE57,IF(الجدول1[[#This Row],[عمود41]]="جيد فقط","ناجح بتقدير جيد فقط"&" "&BE57,IF(الجدول1[[#This Row],[عمود41]]="مقبول","ناجح بتقدير مقبول"&" "&BE57,IF(COUNTBLANK($AR57:$BB57)=11,الجدول1[[#This Row],[عمود35]],"يحتاج إلى عناية في : "&textjoin(" و ",$AR57:$BB57)))))) -> يحتاج إلى عناية في : اللغة الانجليزية و الرياضيات و الكيمياء و التاريخ و الجغرافيا | AS57: اللغة الانجليزية | AT57: الرياضيات | AV57: الكيمياء | AZ57: التاريخ | BA57: الجغرافيا | BC57: =IF(AND(الجدول1[[#This Row],[عمود43]]="",الجدول1[[#This Row],[عمود44]]="",الجدول1[[#This Row],[عمود45]]="",الجدول1[[#This Row],[عمود46]]="",الجدول1[[#This Row],[عمود47]]="",الجدول1[[#This Row],[عمود48]]="",الجدول1[[#This Row],[عمود49]]="",الجدول1[[#This Row],[عمود50]]="",الجدول1[[#This Row],[عمود51]]="",الجدول1[[#This Row],[عمود52]]="",الجدول1[[#This Row],[عمود53]]=""),"","1") -> 1 | BD57: =IF(الجدول1[[#This Row],[عمود39]]="","",RANK(AN57,$AN$10:$AN$104)) ->  | BE57: =IF(الجدول1[[#This Row],[عمود55]]>10,"",atrteb(الجدول1[[#This Row],[عمود55]])) -> 
B58: =IF(C58<>"",SUBTOTAL(3,$C$10:C58),"") -> 49 | C58: الطالب 49 | E58: 46 | F58: 45 | G58: 91 | H58: 50 | I58: 49 | J58: 99 | K58: 50 | L58: 47 | M58: 97 | N58: 29 | O58: 28 | P58: 57 | Q58: 24 | R58: 27 | S58: 51 | T58: 23 | U58: 28 | V58: 51 | W58: 18 | X58: 18 | Y58: 36 | Z58: 15 | AA58: 18 | AB58: 33 | AC58: 15 | AD58: 18 | AE58: 33 | AF58: 17 | AG58: 19 | AH58: 36 | AI58: 7 | AJ58: 8 | AK58: 15 | AL58: انثى | AM58: 5/1 | AN58: 599 | AO58: =IF(الجدول1[[#This Row],[عمود39]]="","",الجدول1[[#This Row],[عمود39]]/640*100) -> 93.59375 | AP58: =IF(الجدول1[[#This Row],[عمود40]]="","",evaltion(الجدول1[[#This Row],[عمود40]])) -> ممتاز | AQ58: =IF(الجدول1[[#This Row],[عمود41]]="ممتاز", "ناجح بتقدير ممتاز"&" "&BE58,IF(الجدول1[[#This Row],[عمود41]]="جيد جدا","ناجح بتقدير جيد جدا"&" "&BE58,IF(الجدول1[[#This Row],[عمود41]]="جيد فقط","ناجح بتقدير جيد فقط"&" "&BE58,IF(الجدول1[[#This Row],[عمود41]]="مقبول","ناجح بتقدير مقبول"&" "&BE58,IF(COUNTBLANK($AR58:$BB58)=11,الجدول1[[#This Row],[عمود35]],"يحتاج إلى عناية في : "&textjoin(" و ",$AR58:$BB58)))))) -> ناجح بتقدير ممتاز الترتيب السادس | BC58: =IF(AND(الجدول1[[#This Row],[عمود43]]="",الجدول1[[#This Row],[عمود44]]="",الجدول1[[#This Row],[عمود45]]="",الجدول1[[#This Row],[عمود46]]="",الجدول1[[#This Row],[عمود47]]="",الجدول1[[#This Row],[عمود48]]="",الجدول1[[#This Row],[عمود49]]="",الجدول1[[#This Row],[عمود50]]="",الجدول1[[#This Row],[عمود51]]="",الجدول1[[#This Row],[عمود52]]="",الجدول1[[#This Row],[عمود53]]=""),"","1") ->  | BD58: =IF(الجدول1[[#This Row],[عمود39]]="","",RANK(AN58,$AN$10:$AN$104)) -> 6 | BE58: =IF(الجدول1[[#This Row],[عمود55]]>10,"",atrteb(الجدول1[[#This Row],[عمود55]])) -> الترتيب السادس
B59: =IF(C59<>"",SUBTOTAL(3,$C$10:C59),"") -> 50 | C59: الطالب 50 | E59: 46 | F59: 48 | G59: 94 | H59: 50 | I59: 49 | J59: 99 | K59: 50 | L59: 43 | M59: 93 | N59: 29 | O59: 25 | P59: 54 | Q59: 30 | R59: 30 | S59: 60 | T59: 29 | U59: 30 | V59: 59 | W59: 20 | X59: 19 | Y59: 39 | Z59: 20 | AA59: 20 | AB59: 40 | AC59: 20 | AD59: 20 | AE59: 40 | AF59: 20 | AG59: 20 | AH59: 40 | AI59: 10 | AJ59: 10 | AK59: 20 | AL59: انثى | AM59: 6/1 | AN59: 638 | AO59: =IF(الجدول1[[#This Row],[عمود39]]="","",الجدول1[[#This Row],[عمود39]]/640*100) -> 99.6875 | AP59: =IF(الجدول1[[#This Row],[عمود40]]="","",evaltion(الجدول1[[#This Row],[عمود40]])) -> ممتاز | AQ59: =IF(الجدول1[[#This Row],[عمود41]]="ممتاز", "ناجح بتقدير ممتاز"&" "&BE59,IF(الجدول1[[#This Row],[عمود41]]="جيد جدا","ناجح بتقدير جيد جدا"&" "&BE59,IF(الجدول1[[#This Row],[عمود41]]="جيد فقط","ناجح بتقدير جيد فقط"&" "&BE59,IF(الجدول1[[#This Row],[عمود41]]="مقبول","ناجح بتقدير مقبول"&" "&BE59,IF(COUNTBLANK($AR59:$BB59)=11,الجدول1[[#This Row],[عمود35]],"يحتاج إلى عناية في : "&textjoin(" و ",$AR59:$BB59)))))) -> ناجح بتقدير ممتاز الترتيب الثالث | BC59: =IF(AND(الجدول1[[#This Row],[عمود43]]="",الجدول1[[#This Row],[عمود44]]="",الجدول1[[#This Row],[عمود45]]="",الجدول1[[#This Row],[عمود46]]="",الجدول1[[#This Row],[عمود47]]="",الجدول1[[#This Row],[عمود48]]="",الجدول1[[#This Row],[عمود49]]="",الجدول1[[#This Row],[عمود50]]="",الجدول1[[#This Row],[عمود51]]="",الجدول1[[#This Row],[عمود52]]="",الجدول1[[#This Row],[عمود53]]=""),"","1") ->  | BD59: =IF(الجدول1[[#This Row],[عمود39]]="","",RANK(AN59,$AN$10:$AN$104)) -> 3 | BE59: =IF(الجدول1[[#This Row],[عمود55]]>10,"",atrteb(الجدول1[[#This Row],[عمود55]])) -> الترتيب الثالث
